Publisher Label,Publisher URI,"Supplier ID","Supplier","Invoice No.","Amount (£)","Purpose","Transaction Number","Payment Date","Organisational Unit","Cost Centre(T)","Internal Category Number"
"Wolverhampton City Council","http://opendatacommunities.org/id/metropolitan-district-council/wolverhampton","705542","Midwest Electrical Services Limited","I14254","153.36","R&M - Departmental planned (external)","130193093","22/11/2017","Facilities Management","Magistrates","R2001"
"Wolverhampton City Council","http://opendatacommunities.org/id/metropolitan-district-council/wolverhampton","705542","Midwest Electrical Services Limited","I14252","996.00","R&M - Departmental planned (external)","130193091","22/11/2017","Learning Disability Provider","City Links","R2001"
"Wolverhampton City Council","http://opendatacommunities.org/id/metropolitan-district-council/wolverhampton","705542","Midwest Electrical Services Limited","I14274","1,100.00","Construction and Conversion","130193467","22/11/2017","-","Corporate Asset Management","C1100"
"Wolverhampton City Council","http://opendatacommunities.org/id/metropolitan-district-council/wolverhampton","705542","Midwest Electrical Services Limited","I14248","21.43","R&M - Departmental planned (external)","130193087","22/11/2017","Markets","Wolverhampton Indoor and Open Market","R2001"
"Wolverhampton City Council","http://opendatacommunities.org/id/metropolitan-district-council/wolverhampton","705542","Midwest Electrical Services Limited","I14097","21.43","R&M - Departmental planned (external)","130191753","10/11/2017","Facilities Management","Caretakers Community Centre","R2001"
"Wolverhampton City Council","http://opendatacommunities.org/id/metropolitan-district-council/wolverhampton","705542","Midwest Electrical Services Limited","I14103","58.63","R&M - Departmental planned (external)","130193701","10/11/2017","Maintenance Programme","Centralised R&M","R2001"
"Wolverhampton City Council","http://opendatacommunities.org/id/metropolitan-district-council/wolverhampton","705542","Midwest Electrical Services Limited","I14166","104.08","R&M - Departmental planned (external)","130192296","15/11/2017","Facilities Management","Caretakers Community Centre","R2001"
"Wolverhampton City Council","http://opendatacommunities.org/id/metropolitan-district-council/wolverhampton","705542","Midwest Electrical Services Limited","I13435","21.43","R&M - Departmental planned (external)","130185554","15/11/2017","Facilities Management","Magistrates","R2001"
"Wolverhampton City Council","http://opendatacommunities.org/id/metropolitan-district-council/wolverhampton","705542","Midwest Electrical Services Limited","I14202","684.11","R&M - Departmental planned (external)","130192591","15/11/2017","Maintenance Programme","Centralised R&M","R2001"
"Wolverhampton City Council","http://opendatacommunities.org/id/metropolitan-district-council/wolverhampton","705542","Midwest Electrical Services Limited","I14201","165.34","R&M - Departmental planned (external)","130192590","15/11/2017","Estates and Valuations","Offices ; Bond House","R2001"
"Wolverhampton City Council","http://opendatacommunities.org/id/metropolitan-district-council/wolverhampton","705542","Midwest Electrical Services Limited","I14194","1,314.84","R&M - Departmental planned (external)","130194959","15/11/2017","Maintenance Programme","Centralised R&M","R2001"
"Wolverhampton City Council","http://opendatacommunities.org/id/metropolitan-district-council/wolverhampton","705542","Midwest Electrical Services Limited","I14371","4,075.20","R&M - Departmental planned (external)","130194059","29/11/2017","Maintenance Programme","Centralised R&M","R2001"
"Wolverhampton City Council","http://opendatacommunities.org/id/metropolitan-district-council/wolverhampton","705542","Midwest Electrical Services Limited","I13485","52,793.00","Construction and Conversion","130195340","17/11/2017","-","Electrical Works","C1100"
"Wolverhampton City Council","http://opendatacommunities.org/id/metropolitan-district-council/wolverhampton","705542","Midwest Electrical Services Limited","I14100","42.73","R&M - Departmental planned (external)","130193700","10/11/2017","Maintenance Programme","Centralised R&M","R2001"
"Wolverhampton City Council","http://opendatacommunities.org/id/metropolitan-district-council/wolverhampton","705542","Midwest Electrical Services Limited","I14283","294.08","R&M - Departmental planned (external)","130193859","24/11/2017","Maintenance Programme","Centralised R&M","R2001"
"Wolverhampton City Council","http://opendatacommunities.org/id/metropolitan-district-council/wolverhampton","705548","Mike Tivey","SFH7/09/17","620.00","Services - Professional Fees","130196763","24/11/2017","Early Intervention","EIP Locality 7 � Low Hill","R4400"
"Wolverhampton City Council","http://opendatacommunities.org/id/metropolitan-district-council/wolverhampton","705592","Mitchell Diesel Limited","128235","9.14","Equipment - Purchase","190393156","24/11/2017","Fleet Services","Fleet Management","R4000"
"Wolverhampton City Council","http://opendatacommunities.org/id/metropolitan-district-council/wolverhampton","705592","Mitchell Diesel Limited","126775","1,014.68","Equipment - Purchase","190397162","24/11/2017","Fleet Services","Fleet Management","R4000"
"Wolverhampton City Council","http://opendatacommunities.org/id/metropolitan-district-council/wolverhampton","705592","Mitchell Diesel Limited","126775","47.85","Equipment - Purchase","190397162","24/11/2017","Fleet Services","Fleet Management","R4000"
"Wolverhampton City Council","http://opendatacommunities.org/id/metropolitan-district-council/wolverhampton","705592","Mitchell Diesel Limited","127569","-702.00","Equipment - Purchase","190390184","24/11/2017","Fleet Services","Fleet Management","R4000"
"Wolverhampton City Council","http://opendatacommunities.org/id/metropolitan-district-council/wolverhampton","705592","Mitchell Diesel Limited","127684","112.92","Equipment - Purchase","190388902","01/11/2017","Fleet Services","Fleet Management","R4000"
"Wolverhampton City Council","http://opendatacommunities.org/id/metropolitan-district-council/wolverhampton","705592","Mitchell Diesel Limited","127684","278.26","Equipment - Purchase","190388902","01/11/2017","Fleet Services","Fleet Management","R4000"
"Wolverhampton City Council","http://opendatacommunities.org/id/metropolitan-district-council/wolverhampton","705592","Mitchell Diesel Limited","127684","147.24","Equipment - Purchase","190388902","01/11/2017","Fleet Services","Fleet Management","R4000"
"Wolverhampton City Council","http://opendatacommunities.org/id/metropolitan-district-council/wolverhampton","705592","Mitchell Diesel Limited","127684","129.98","Equipment - Purchase","190388902","01/11/2017","Fleet Services","Fleet Management","R4000"
"Wolverhampton City Council","http://opendatacommunities.org/id/metropolitan-district-council/wolverhampton","705592","Mitchell Diesel Limited","127896","147.54","Equipment - Purchase","190388903","01/11/2017","Fleet Services","Fleet Management","R4000"
"Wolverhampton City Council","http://opendatacommunities.org/id/metropolitan-district-council/wolverhampton","705592","Mitchell Diesel Limited","127896","90.18","Equipment - Purchase","190388903","01/11/2017","Fleet Services","Fleet Management","R4000"
"Wolverhampton City Council","http://opendatacommunities.org/id/metropolitan-district-council/wolverhampton","705592","Mitchell Diesel Limited","127679","590.77","Equipment - Purchase","190388901","01/11/2017","Fleet Services","Fleet Management","R4000"
"Wolverhampton City Council","http://opendatacommunities.org/id/metropolitan-district-council/wolverhampton","705592","Mitchell Diesel Limited","127679","14.90","Equipment - Purchase","190388901","01/11/2017","Fleet Services","Fleet Management","R4000"
"Wolverhampton City Council","http://opendatacommunities.org/id/metropolitan-district-council/wolverhampton","705592","Mitchell Diesel Limited","127679","70.07","Equipment - Purchase","190388901","01/11/2017","Fleet Services","Fleet Management","R4000"
"Wolverhampton City Council","http://opendatacommunities.org/id/metropolitan-district-council/wolverhampton","705592","Mitchell Diesel Limited","127679","7.39","Equipment - Purchase","190388901","01/11/2017","Fleet Services","Fleet Management","R4000"
"Wolverhampton City Council","http://opendatacommunities.org/id/metropolitan-district-council/wolverhampton","705592","Mitchell Diesel Limited","127679","7.24","Equipment - Purchase","190388901","01/11/2017","Fleet Services","Fleet Management","R4000"
"Wolverhampton City Council","http://opendatacommunities.org/id/metropolitan-district-council/wolverhampton","705592","Mitchell Diesel Limited","127679","3.75","Equipment - Purchase","190388901","01/11/2017","Fleet Services","Fleet Management","R4000"
"Wolverhampton City Council","http://opendatacommunities.org/id/metropolitan-district-council/wolverhampton","705592","Mitchell Diesel Limited","127679","24.78","Equipment - Purchase","190388901","01/11/2017","Fleet Services","Fleet Management","R4000"
"Wolverhampton City Council","http://opendatacommunities.org/id/metropolitan-district-council/wolverhampton","705592","Mitchell Diesel Limited","128173","7.39","Equipment - Purchase","190395076","24/11/2017","Fleet Services","Fleet Management","R4000"
"Wolverhampton City Council","http://opendatacommunities.org/id/metropolitan-district-council/wolverhampton","705592","Mitchell Diesel Limited","128173","1.24","Equipment - Purchase","190395076","24/11/2017","Fleet Services","Fleet Management","R4000"
"Wolverhampton City Council","http://opendatacommunities.org/id/metropolitan-district-council/wolverhampton","705592","Mitchell Diesel Limited","128173","3.65","Equipment - Purchase","190395076","24/11/2017","Fleet Services","Fleet Management","R4000"
"Wolverhampton City Council","http://opendatacommunities.org/id/metropolitan-district-council/wolverhampton","705592","Mitchell Diesel Limited","128173","1.12","Equipment - Purchase","190395076","24/11/2017","Fleet Services","Fleet Management","R4000"
"Wolverhampton City Council","http://opendatacommunities.org/id/metropolitan-district-council/wolverhampton","705592","Mitchell Diesel Limited","128173","4.90","Equipment - Purchase","190395076","24/11/2017","Fleet Services","Fleet Management","R4000"
"Wolverhampton City Council","http://opendatacommunities.org/id/metropolitan-district-council/wolverhampton","705598","MJAC","26/17","95.00","Subscriptions","130196541","24/11/2017","Public Protection","EHTS Operational Costs","R4701"
"Wolverhampton City Council","http://opendatacommunities.org/id/metropolitan-district-council/wolverhampton","705609","Mobile Mini UK Limited","7000574425","-45.50","Equipment - Hire","130191560","03/11/2017","Environmental Maintenance","Parks - Ranger Service","R4001"
"Wolverhampton City Council","http://opendatacommunities.org/id/metropolitan-district-council/wolverhampton","705609","Mobile Mini UK Limited","7000573120","30.00","Equipment - Hire","130191350","03/11/2017","Environmental Maintenance","Parks - Ranger Service","R4001"
"Wolverhampton City Council","http://opendatacommunities.org/id/metropolitan-district-council/wolverhampton","705609","Mobile Mini UK Limited","7000590988","50.00","Hire of Plant","130193096","03/11/2017","Environmental Maintenance","Ground Maintenance West","R3201"
"Wolverhampton City Council","http://opendatacommunities.org/id/metropolitan-district-council/wolverhampton","705634","Morelock Signs Limited","0000201224","240.00","Materials","130193097","15/11/2017","Street Lighting","Christmas Illuminations","R4007"
"Wolverhampton City Council","http://opendatacommunities.org/id/metropolitan-district-council/wolverhampton","705634","Morelock Signs Limited","0000200928","1,823.82","Construction and Conversion","130192112","08/11/2017","-","Safety Programme","C1100"
"Wolverhampton City Council","http://opendatacommunities.org/id/metropolitan-district-council/wolverhampton","705634","Morelock Signs Limited","0000201101","91.48","Materials","130194061","10/11/2017","Highways Maintenance","Signs Non Illuminated","R4007"
"Wolverhampton City Council","http://opendatacommunities.org/id/metropolitan-district-council/wolverhampton","705634","Morelock Signs Limited","0000201102","25.98","Materials","130194062","10/11/2017","Highways Maintenance","Signs Non Illuminated","R4007"
"Wolverhampton City Council","http://opendatacommunities.org/id/metropolitan-district-council/wolverhampton","705634","Morelock Signs Limited","0000201338","93.62","Construction and Conversion","130193573","17/11/2017","-","Wolverhampton Interchange","C1100"
"Wolverhampton City Council","http://opendatacommunities.org/id/metropolitan-district-council/wolverhampton","705634","Morelock Signs Limited","0000201100","90.30","Construction and Conversion","130194060","10/11/2017","-","Safety Programme","C1100"
"Wolverhampton City Council","http://opendatacommunities.org/id/metropolitan-district-council/wolverhampton","705634","Morelock Signs Limited","0000200887","65.80","TPP - Maintenance on Principal Roads","130191918","08/11/2017","Transportation","Bridges & Subways","R5700"
"Wolverhampton City Council","http://opendatacommunities.org/id/metropolitan-district-council/wolverhampton","705634","Morelock Signs Limited","0000200889","137.22","Materials","130191919","08/11/2017","Highways Maintenance","Signs Non Illuminated","R4007"
"Wolverhampton City Council","http://opendatacommunities.org/id/metropolitan-district-council/wolverhampton","705634","Morelock Signs Limited","0000200726","1,418.65","Materials","130191917","08/11/2017","Highways Maintenance","Signs Non Illuminated","R4007"
"Wolverhampton City Council","http://opendatacommunities.org/id/metropolitan-district-council/wolverhampton","705634","Morelock Signs Limited","0000200918","660.00","Materials","130191921","08/11/2017","Street Lighting","Signs Illuminated","R4007"
"Wolverhampton City Council","http://opendatacommunities.org/id/metropolitan-district-council/wolverhampton","705634","Morelock Signs Limited","0000201339","127.52","Materials","130193574","17/11/2017","Highways Maintenance","Signs Non Illuminated","R4007"
"Wolverhampton City Council","http://opendatacommunities.org/id/metropolitan-district-council/wolverhampton","705634","Morelock Signs Limited","0000200524","2,048.22","Construction and Conversion","130191915","08/11/2017","-","Safety Programme","C1100"
"Wolverhampton City Council","http://opendatacommunities.org/id/metropolitan-district-council/wolverhampton","705634","Morelock Signs Limited","0000200890","1,368.50","Construction and Conversion","130191920","08/11/2017","-","Safety Programme","C1100"
"Wolverhampton City Council","http://opendatacommunities.org/id/metropolitan-district-council/wolverhampton","705634","Morelock Signs Limited","0000200718","790.44","Construction and Conversion","130191916","08/11/2017","-","Safety Programme","C1100"
"Wolverhampton City Council","http://opendatacommunities.org/id/metropolitan-district-council/wolverhampton","705644","Moseley Park School","P15815820171109","600.00","Grant Payments to Individuals","190391805","10/11/2017","Looked After Children","LAC Education Team (LACE)","R6402"
"Wolverhampton City Council","http://opendatacommunities.org/id/metropolitan-district-council/wolverhampton","705644","Moseley Park School","P15815820171109","600.00","Grant Payments to Individuals","190391805","10/11/2017","Looked After Children","LAC Education Team (LACE)","R6402"
"Wolverhampton City Council","http://opendatacommunities.org/id/metropolitan-district-council/wolverhampton","705644","Moseley Park School","P15815820171109","600.00","Grant Payments to Individuals","190391805","10/11/2017","Looked After Children","LAC Education Team (LACE)","R6402"
"Wolverhampton City Council","http://opendatacommunities.org/id/metropolitan-district-council/wolverhampton","705644","Moseley Park School","P15815820171109","600.00","Grant Payments to Individuals","190391805","10/11/2017","Looked After Children","LAC Education Team (LACE)","R6402"
"Wolverhampton City Council","http://opendatacommunities.org/id/metropolitan-district-council/wolverhampton","705644","Moseley Park School","P15815820171109","600.00","Grant Payments to Individuals","190391805","10/11/2017","Looked After Children","LAC Education Team (LACE)","R6402"
"Wolverhampton City Council","http://opendatacommunities.org/id/metropolitan-district-council/wolverhampton","705646","Mossvale Maint & Sealing Servs Limited","57793","350.00","TPP - Street Cleansing","130196943","29/11/2017","Highways Maintenance","Brook course, Culvert & Subway Maintenance","R5026"
"Wolverhampton City Council","http://opendatacommunities.org/id/metropolitan-district-council/wolverhampton","705646","Mossvale Maint & Sealing Servs Limited","57711","350.00","TPP - Street Cleansing","130195898","22/11/2017","Highways Maintenance","Brook course, Culvert & Subway Maintenance","R5026"
"Wolverhampton City Council","http://opendatacommunities.org/id/metropolitan-district-council/wolverhampton","705680","M-R-S Communications Limited","1161063","130.00","Equipment - R & M","130148564","15/11/2017","Operation & Maintenance of Existing Network","UTC Wolverhampton","R4003"
"Wolverhampton City Council","http://opendatacommunities.org/id/metropolitan-district-council/wolverhampton","705720","Mvis Limited:Municipal Vehicle Insp.Svs.","INV-3676","49.50","Services - Professional Fees","190391086","08/11/2017","Fleet Services","Fleet Management","R4400"
"Wolverhampton City Council","http://opendatacommunities.org/id/metropolitan-district-council/wolverhampton","705720","Mvis Limited:Municipal Vehicle Insp.Svs.","INV-3676","49.50","Services - Professional Fees","190391086","08/11/2017","Fleet Services","Fleet Management","R4400"
"Wolverhampton City Council","http://opendatacommunities.org/id/metropolitan-district-council/wolverhampton","705720","Mvis Limited:Municipal Vehicle Insp.Svs.","INV-3676","49.50","Services - Professional Fees","190391086","08/11/2017","Fleet Services","Fleet Management","R4400"
"Wolverhampton City Council","http://opendatacommunities.org/id/metropolitan-district-council/wolverhampton","705720","Mvis Limited:Municipal Vehicle Insp.Svs.","INV-3676","49.50","Services - Professional Fees","190391086","08/11/2017","Fleet Services","Fleet Management","R4400"
"Wolverhampton City Council","http://opendatacommunities.org/id/metropolitan-district-council/wolverhampton","705720","Mvis Limited:Municipal Vehicle Insp.Svs.","INV-3676","49.50","Services - Professional Fees","190391086","08/11/2017","Fleet Services","Fleet Management","R4400"
"Wolverhampton City Council","http://opendatacommunities.org/id/metropolitan-district-council/wolverhampton","705720","Mvis Limited:Municipal Vehicle Insp.Svs.","INV-3676","49.50","Services - Professional Fees","190391086","08/11/2017","Fleet Services","Fleet Management","R4400"
"Wolverhampton City Council","http://opendatacommunities.org/id/metropolitan-district-council/wolverhampton","705720","Mvis Limited:Municipal Vehicle Insp.Svs.","INV-3676","49.50","Services - Professional Fees","190391086","08/11/2017","Fleet Services","Fleet Management","R4400"
"Wolverhampton City Council","http://opendatacommunities.org/id/metropolitan-district-council/wolverhampton","705720","Mvis Limited:Municipal Vehicle Insp.Svs.","INV-3676","49.50","Services - Professional Fees","190391086","08/11/2017","Fleet Services","Fleet Management","R4400"
"Wolverhampton City Council","http://opendatacommunities.org/id/metropolitan-district-council/wolverhampton","705742","N. D. Brown Limited","115971","472.00","Hire of Vehicles","190392502","15/11/2017","Fleet Services","Fleet Management","R3200"
"Wolverhampton City Council","http://opendatacommunities.org/id/metropolitan-district-council/wolverhampton","705748","Nacro","SIO/008151","365,002.75","TPP - Public Health Contracts","130191922","08/11/2017","Contracts","Alcohol and Drug","R5060"
"Wolverhampton City Council","http://opendatacommunities.org/id/metropolitan-district-council/wolverhampton","705748","Nacro","SIO/008202","0.03","TPP - Other","130193702","22/11/2017","Early Intervention","Vulnerable Women","R5010"
"Wolverhampton City Council","http://opendatacommunities.org/id/metropolitan-district-council/wolverhampton","705748","Nacro","SIO/008202","6,248.89","TPP - Other","130193702","22/11/2017","Early Intervention","Vulnerable Women","R5010"
"Wolverhampton City Council","http://opendatacommunities.org/id/metropolitan-district-council/wolverhampton","705751","Nalco Limited","9400465537","412.50","R&M - Departmental planned (external)","130193098","08/11/2017","Maintenance Programme","Civic Centre Repairs & Maintenance","R2001"
"Wolverhampton City Council","http://opendatacommunities.org/id/metropolitan-district-council/wolverhampton","705751","Nalco Limited","9400463773","192.60","Materials","130192928","24/11/2017","Maintenance Programme","Civic Centre Repairs & Maintenance","R4007"
"Wolverhampton City Council","http://opendatacommunities.org/id/metropolitan-district-council/wolverhampton","705802","Nationwide Platforms Limited (Lavendon)","453000450","1,268.00","Materials","130194963","29/11/2017","Street Lighting","Christmas Illuminations","R4007"
"Wolverhampton City Council","http://opendatacommunities.org/id/metropolitan-district-council/wolverhampton","705816","NCFE","SI00046411","300.00","Exam Expenses (Non-Employee)","130195170","29/11/2017","Adult Education","Discretionary Fund","R4630"
"Wolverhampton City Council","http://opendatacommunities.org/id/metropolitan-district-council/wolverhampton","705829","Neopost Limited (Credifon)",""FRANKING CREDITS ""60"""","5,000.00","Inventories","190389935","03/11/2017","-","General Fund Balance Sheet","B3000"
"Wolverhampton City Council","http://opendatacommunities.org/id/metropolitan-district-council/wolverhampton","705829","Neopost Limited (Credifon)",""FRANKING CREDITS ""61"""","5,000.00","Inventories","190394818","22/11/2017","-","General Fund Balance Sheet","B3000"
"Wolverhampton City Council","http://opendatacommunities.org/id/metropolitan-district-council/wolverhampton","705854","Newauto Limited T/A Mogo (UK)","T27652","3,840.00","Signage and Labels","130193099","08/11/2017","Licensing","Licensing - Private Hire Vehicles","R4009"
"Wolverhampton City Council","http://opendatacommunities.org/id/metropolitan-district-council/wolverhampton","705854","Newauto Limited T/A Mogo (UK)","T27652","19.90","Signage and Labels","130193099","08/11/2017","Licensing","Licensing - Private Hire Vehicles","R4009"
"Wolverhampton City Council","http://opendatacommunities.org/id/metropolitan-district-council/wolverhampton","705854","Newauto Limited T/A Mogo (UK)","T27626","384.00","Signage and Labels","130191352","01/11/2017","Licensing","Licensing - Private Hire Vehicles","R4009"
"Wolverhampton City Council","http://opendatacommunities.org/id/metropolitan-district-council/wolverhampton","705854","Newauto Limited T/A Mogo (UK)","T27626","14.90","Signage and Labels","130191352","01/11/2017","Licensing","Licensing - Private Hire Vehicles","R4009"
"Wolverhampton City Council","http://opendatacommunities.org/id/metropolitan-district-council/wolverhampton","705856","Newbridge Surgery","041017 July-Sept 2017","35.00","TPP - Public Health Contracts","190389903","03/11/2017","Contracts","Wider determinants","R5060"
"Wolverhampton City Council","http://opendatacommunities.org/id/metropolitan-district-council/wolverhampton","705861","Newhampton Arts Centre","3431","360.00","Room Hire","130194353","08/11/2017","Human Resources","Workforce Development","R2201"
"Wolverhampton City Council","http://opendatacommunities.org/id/metropolitan-district-council/wolverhampton","705861","Newhampton Arts Centre","3431","225.00","Catering","130194353","08/11/2017","Human Resources","Workforce Development","R4100"
"Wolverhampton City Council","http://opendatacommunities.org/id/metropolitan-district-council/wolverhampton","705861","Newhampton Arts Centre","3431","-225.00","Catering","130194353","08/11/2017","Human Resources","Workforce Development","R4100"
"Wolverhampton City Council","http://opendatacommunities.org/id/metropolitan-district-council/wolverhampton","705861","Newhampton Arts Centre","3431","225.00","Catering","130194353","08/11/2017","Human Resources","Workforce Development","R4100"
"Wolverhampton City Council","http://opendatacommunities.org/id/metropolitan-district-council/wolverhampton","705869","Newstart Networks Cic","NSN20/2017 - 2018","1,813.20","Services - Professional Fees","130194354","08/11/2017","Looked After Children","Adoption and Residence Team & Allowances","R4400"
"Wolverhampton City Council","http://opendatacommunities.org/id/metropolitan-district-council/wolverhampton","705869","Newstart Networks Cic","NSN28/2017 - 2018","1,656.40","Services - Professional Fees","130195172","15/11/2017","Child Protection","CIN/CP Social Work Unit - Area 4","R4400"
"Wolverhampton City Council","http://opendatacommunities.org/id/metropolitan-district-council/wolverhampton","705891","Nicki Pettitt Limited","SCRG/WSCB/1","3,075.00","Services - Professional Fees","130194205","08/11/2017","Safeguarding","Safeguarding Board - Childrens","R4400"
"Wolverhampton City Council","http://opendatacommunities.org/id/metropolitan-district-council/wolverhampton","705907","NJB Physiotherapy Limited","57786","168.00","Services - Professional Fees","130196408","24/11/2017","Human Resources","HR Advice","R4400"
"Wolverhampton City Council","http://opendatacommunities.org/id/metropolitan-district-council/wolverhampton","705907","NJB Physiotherapy Limited","57824","85.00","Services - Professional Fees","130196414","22/11/2017","Human Resources","HR Advice","R4400"
"Wolverhampton City Council","http://opendatacommunities.org/id/metropolitan-district-council/wolverhampton","705907","NJB Physiotherapy Limited","57458","85.00","Services - Professional Fees","130192752","08/11/2017","Human Resources","HR Advice","R4400"
"Wolverhampton City Council","http://opendatacommunities.org/id/metropolitan-district-council/wolverhampton","705907","NJB Physiotherapy Limited","57507","50.00","Services - Professional Fees","130192757","08/11/2017","Human Resources","HR Advice","R4400"
"Wolverhampton City Council","http://opendatacommunities.org/id/metropolitan-district-council/wolverhampton","705907","NJB Physiotherapy Limited","57505","85.00","Services - Professional Fees","130192756","08/11/2017","Human Resources","HR Advice","R4400"
"Wolverhampton City Council","http://opendatacommunities.org/id/metropolitan-district-council/wolverhampton","705907","NJB Physiotherapy Limited","57459","85.00","Services - Professional Fees","130192753","08/11/2017","Human Resources","HR Advice","R4400"
"Wolverhampton City Council","http://opendatacommunities.org/id/metropolitan-district-council/wolverhampton","705907","NJB Physiotherapy Limited","57460","85.00","Services - Professional Fees","130192754","08/11/2017","Human Resources","HR Advice","R4400"
"Wolverhampton City Council","http://opendatacommunities.org/id/metropolitan-district-council/wolverhampton","705907","NJB Physiotherapy Limited","57504","85.00","Services - Professional Fees","130192755","08/11/2017","Human Resources","HR Advice","R4400"
"Wolverhampton City Council","http://opendatacommunities.org/id/metropolitan-district-council/wolverhampton","705907","NJB Physiotherapy Limited","57626","85.00","Services - Professional Fees","130194648","08/11/2017","Human Resources","HR Advice","R4400"
"Wolverhampton City Council","http://opendatacommunities.org/id/metropolitan-district-council/wolverhampton","705907","NJB Physiotherapy Limited","57735","85.00","Services - Professional Fees","130194649","08/11/2017","Human Resources","HR Advice","R4400"
"Wolverhampton City Council","http://opendatacommunities.org/id/metropolitan-district-council/wolverhampton","705907","NJB Physiotherapy Limited","57528","168.00","Services - Professional Fees","130192758","08/11/2017","Human Resources","HR Advice","R4400"
"Wolverhampton City Council","http://opendatacommunities.org/id/metropolitan-district-council/wolverhampton","705907","NJB Physiotherapy Limited","57746","50.00","Services - Professional Fees","130194650","10/11/2017","Human Resources","HR Advice","R4400"
"Wolverhampton City Council","http://opendatacommunities.org/id/metropolitan-district-council/wolverhampton","705907","NJB Physiotherapy Limited","57625","85.00","Services - Professional Fees","130194647","10/11/2017","Human Resources","HR Advice","R4400"
"Wolverhampton City Council","http://opendatacommunities.org/id/metropolitan-district-council/wolverhampton","705913","No 5 Chambers Limited","8223","18,916.67","Services - Professional Fees","130193704","03/11/2017","Public Protection","EHTS Operational Costs","R4400"
"Wolverhampton City Council","http://opendatacommunities.org/id/metropolitan-district-council/wolverhampton","705913","No 5 Chambers Limited","199","750.00","Services - Professional Fees","130193860","01/11/2017","Licensing","Licensing - Private Hire Vehicles","R4400"
"Wolverhampton City Council","http://opendatacommunities.org/id/metropolitan-district-council/wolverhampton","705913","No 5 Chambers Limited","185","500.00","Services - Professional Fees","130195350","15/11/2017","Legal Services","Centralised External Legal Costs","R4400"
"Wolverhampton City Council","http://opendatacommunities.org/id/metropolitan-district-council/wolverhampton","705913","No 5 Chambers Limited","448","750.00","Services - Professional Fees","130195351","15/11/2017","Legal Services","Centralised External Legal Costs","R4400"
"Wolverhampton City Council","http://opendatacommunities.org/id/metropolitan-district-council/wolverhampton","705913","No 5 Chambers Limited","1975","1,000.00","Services - Professional Fees","130196094","22/11/2017","Legal Services","Centralised External Legal Costs","R4400"
"Wolverhampton City Council","http://opendatacommunities.org/id/metropolitan-district-council/wolverhampton","705913","No 5 Chambers Limited","8220","8,316.67","Services - Professional Fees","130193703","01/11/2017","Public Protection","EHTS Operational Costs","R4400"
"Wolverhampton City Council","http://opendatacommunities.org/id/metropolitan-district-council/wolverhampton","705915","Noah�s Ark Environmental Services Ltd","WV17010","847.00","Services - Professional Fees","130194493","10/11/2017","Public Protection","Pest Control & Animal Welfare","R4400"
"Wolverhampton City Council","http://opendatacommunities.org/id/metropolitan-district-council/wolverhampton","705916","Nobisco Limited","508049","0.05","Cleaning Supplies and Materials","130195174","15/11/2017","Cleaning","Cleaning of Buildings - General","R2705"
"Wolverhampton City Council","http://opendatacommunities.org/id/metropolitan-district-council/wolverhampton","705916","Nobisco Limited","508049","178.89","Cleaning Supplies and Materials","130195174","15/11/2017","Cleaning","Cleaning of Buildings - General","R2705"
"Wolverhampton City Council","http://opendatacommunities.org/id/metropolitan-district-council/wolverhampton","705916","Nobisco Limited","507788","2,179.92","Cleaning Supplies and Materials","130194825","15/11/2017","Cleaning","Cleaning of Buildings - General","R2705"
"Wolverhampton City Council","http://opendatacommunities.org/id/metropolitan-district-council/wolverhampton","705916","Nobisco Limited","507793","33.53","Cleaning Supplies and Materials","130194830","15/11/2017","Specialist Support","Upper Pendeford Farm Short Breaks Centre","R2705"
"Wolverhampton City Council","http://opendatacommunities.org/id/metropolitan-district-council/wolverhampton","705916","Nobisco Limited","505823","71.20","Cleaning Supplies and Materials","130193478","15/11/2017","Older People Provider Services","Bradley Lodge Resource Centre","R2705"
"Wolverhampton City Council","http://opendatacommunities.org/id/metropolitan-district-council/wolverhampton","705916","Nobisco Limited","506171","17.08","Cleaning Supplies and Materials","130193711","15/11/2017","Older People Provider Services","Bradley Lodge Resource Centre","R2705"
"Wolverhampton City Council","http://opendatacommunities.org/id/metropolitan-district-council/wolverhampton","705916","Nobisco Limited","507393","228.96","Cleaning Supplies and Materials","130194653","15/11/2017","Cleaning","Cleaning of Buildings - General","R2705"
"Wolverhampton City Council","http://opendatacommunities.org/id/metropolitan-district-council/wolverhampton","705916","Nobisco Limited","505280","88.48","Cleaning Supplies and Materials","130192932","15/11/2017","Older People Provider Services","Bradley Lodge Resource Centre","R2705"
"Wolverhampton City Council","http://opendatacommunities.org/id/metropolitan-district-council/wolverhampton","705916","Nobisco Limited","507792","519.63","Cleaning Supplies and Materials","130194829","15/11/2017","Learning Disability Provider","Duke Street Bungalows","R2705"
"Wolverhampton City Council","http://opendatacommunities.org/id/metropolitan-district-council/wolverhampton","705916","Nobisco Limited","508050","204.24","Cleaning Supplies and Materials","130195175","15/11/2017","Learning Disability Provider","Duke Street Bungalows","R2705"
"Wolverhampton City Council","http://opendatacommunities.org/id/metropolitan-district-council/wolverhampton","705916","Nobisco Limited","502361","204.43","Cleaning Supplies and Materials","130190493","15/11/2017","Older People Provider Services","Bradley Lodge Resource Centre","R2705"
"Wolverhampton City Council","http://opendatacommunities.org/id/metropolitan-district-council/wolverhampton","705916","Nobisco Limited","508048","52.59","Cleaning Supplies and Materials","130195173","15/11/2017","Catering","Education Catering - General Overheads","R2705"
"Wolverhampton City Council","http://opendatacommunities.org/id/metropolitan-district-council/wolverhampton","705916","Nobisco Limited","491972","169.06","Cleaning Supplies and Materials","130179587","15/11/2017","Catering","Education Catering - General Overheads","R2705"
"Wolverhampton City Council","http://opendatacommunities.org/id/metropolitan-district-council/wolverhampton","705916","Nobisco Limited","507795","53.00","Cleaning Supplies and Materials","130194832","15/11/2017","Leisure Services","Bert Williams Leisure Centre","R2705"
"Wolverhampton City Council","http://opendatacommunities.org/id/metropolitan-district-council/wolverhampton","705916","Nobisco Limited","507394","325.76","Cleaning Supplies and Materials","130194654","15/11/2017","Learning Disability Provider","Duke Street Bungalows","R2705"
"Wolverhampton City Council","http://opendatacommunities.org/id/metropolitan-district-council/wolverhampton","705916","Nobisco Limited","507392","1,029.46","Cleaning Supplies and Materials","130194652","15/11/2017","Cleaning","Cleaning of Buildings - General","R2705"
"Wolverhampton City Council","http://opendatacommunities.org/id/metropolitan-district-council/wolverhampton","705916","Nobisco Limited","508629","356.64","Cleaning Supplies and Materials","130195355","22/11/2017","Visitor Economy","The Little Civic","R2705"
"Wolverhampton City Council","http://opendatacommunities.org/id/metropolitan-district-council/wolverhampton","705916","Nobisco Limited","509201","0.04","Cleaning Supplies and Materials","130196096","22/11/2017","Catering","Education Catering - General Overheads","R2705"
"Wolverhampton City Council","http://opendatacommunities.org/id/metropolitan-district-council/wolverhampton","705916","Nobisco Limited","509201","23.27","Cleaning Supplies and Materials","130196096","22/11/2017","Catering","Education Catering - General Overheads","R2705"
"Wolverhampton City Council","http://opendatacommunities.org/id/metropolitan-district-council/wolverhampton","705916","Nobisco Limited","509201","24.00","Cleaning Supplies and Materials","130196096","22/11/2017","Catering","Education Catering - General Overheads","R2705"
"Wolverhampton City Council","http://opendatacommunities.org/id/metropolitan-district-council/wolverhampton","705916","Nobisco Limited","509201","0.03","Cleaning Supplies and Materials","130196096","22/11/2017","Catering","Education Catering - General Overheads","R2705"
"Wolverhampton City Council","http://opendatacommunities.org/id/metropolitan-district-council/wolverhampton","705916","Nobisco Limited","509201","18.52","Cleaning Supplies and Materials","130196096","22/11/2017","Catering","Education Catering - General Overheads","R2705"
"Wolverhampton City Council","http://opendatacommunities.org/id/metropolitan-district-council/wolverhampton","705916","Nobisco Limited","509201","0.02","Cleaning Supplies and Materials","130196096","22/11/2017","Catering","Education Catering - General Overheads","R2705"
"Wolverhampton City Council","http://opendatacommunities.org/id/metropolitan-district-council/wolverhampton","705916","Nobisco Limited","509201","28.45","Cleaning Supplies and Materials","130196096","22/11/2017","Catering","Education Catering - General Overheads","R2705"
"Wolverhampton City Council","http://opendatacommunities.org/id/metropolitan-district-council/wolverhampton","705916","Nobisco Limited","509201","29.44","Cleaning Supplies and Materials","130196096","22/11/2017","Catering","Education Catering - General Overheads","R2705"
"Wolverhampton City Council","http://opendatacommunities.org/id/metropolitan-district-council/wolverhampton","705916","Nobisco Limited","509201","19.40","Cleaning Supplies and Materials","130196096","22/11/2017","Catering","Education Catering - General Overheads","R2705"
"Wolverhampton City Council","http://opendatacommunities.org/id/metropolitan-district-council/wolverhampton","705916","Nobisco Limited","509201","20.35","Cleaning Supplies and Materials","130196096","22/11/2017","Catering","Education Catering - General Overheads","R2705"
"Wolverhampton City Council","http://opendatacommunities.org/id/metropolitan-district-council/wolverhampton","705916","Nobisco Limited","509201","0.02","Cleaning Supplies and Materials","130196096","22/11/2017","Catering","Education Catering - General Overheads","R2705"
"Wolverhampton City Council","http://opendatacommunities.org/id/metropolitan-district-council/wolverhampton","705916","Nobisco Limited","509201","10.30","Cleaning Supplies and Materials","130196096","22/11/2017","Catering","Education Catering - General Overheads","R2705"
"Wolverhampton City Council","http://opendatacommunities.org/id/metropolitan-district-council/wolverhampton","705916","Nobisco Limited","509201","0.02","Cleaning Supplies and Materials","130196096","22/11/2017","Catering","Education Catering - General Overheads","R2705"
"Wolverhampton City Council","http://opendatacommunities.org/id/metropolitan-district-council/wolverhampton","705916","Nobisco Limited","509201","854.68","Cleaning Supplies and Materials","130196096","22/11/2017","Catering","Education Catering - General Overheads","R2705"
"Wolverhampton City Council","http://opendatacommunities.org/id/metropolitan-district-council/wolverhampton","705916","Nobisco Limited","509201","18.36","Cleaning Supplies and Materials","130196096","22/11/2017","Catering","Education Catering - General Overheads","R2705"
"Wolverhampton City Council","http://opendatacommunities.org/id/metropolitan-district-council/wolverhampton","705916","Nobisco Limited","509201","9.30","Cleaning Supplies and Materials","130196096","22/11/2017","Catering","Education Catering - General Overheads","R2705"
"Wolverhampton City Council","http://opendatacommunities.org/id/metropolitan-district-council/wolverhampton","705916","Nobisco Limited","509201","28.57","Cleaning Supplies and Materials","130196096","22/11/2017","Catering","Education Catering - General Overheads","R2705"
"Wolverhampton City Council","http://opendatacommunities.org/id/metropolitan-district-council/wolverhampton","705916","Nobisco Limited","509201","0.01","Cleaning Supplies and Materials","130196096","22/11/2017","Catering","Education Catering - General Overheads","R2705"
"Wolverhampton City Council","http://opendatacommunities.org/id/metropolitan-district-council/wolverhampton","705916","Nobisco Limited","509202","2,793.28","Cleaning Supplies and Materials","130196097","22/11/2017","Cleaning","Cleaning of Buildings - General","R2705"
"Wolverhampton City Council","http://opendatacommunities.org/id/metropolitan-district-council/wolverhampton","705916","Nobisco Limited","506676","42.00","Cleaning Supplies and Materials","130194066","22/11/2017","Independent Living Service","Independent Living Service","R2705"
"Wolverhampton City Council","http://opendatacommunities.org/id/metropolitan-district-council/wolverhampton","705916","Nobisco Limited","506676","10.50","Cleaning Supplies and Materials","130194066","22/11/2017","Independent Living Service","Independent Living Service","R2705"
"Wolverhampton City Council","http://opendatacommunities.org/id/metropolitan-district-council/wolverhampton","705916","Nobisco Limited","506676","36.00","Cleaning Supplies and Materials","130194066","22/11/2017","Independent Living Service","Independent Living Service","R2705"
"Wolverhampton City Council","http://opendatacommunities.org/id/metropolitan-district-council/wolverhampton","705916","Nobisco Limited","506676","49.00","Cleaning Supplies and Materials","130194066","22/11/2017","Independent Living Service","Independent Living Service","R2705"
"Wolverhampton City Council","http://opendatacommunities.org/id/metropolitan-district-council/wolverhampton","705916","Nobisco Limited","506676","16.45","Cleaning Supplies and Materials","130194066","22/11/2017","Independent Living Service","Independent Living Service","R2705"
"Wolverhampton City Council","http://opendatacommunities.org/id/metropolitan-district-council/wolverhampton","705916","Nobisco Limited","506676","3.29","Cleaning Supplies and Materials","130194066","22/11/2017","Independent Living Service","Independent Living Service","R2705"
"Wolverhampton City Council","http://opendatacommunities.org/id/metropolitan-district-council/wolverhampton","705916","Nobisco Limited","506676","141.80","Cleaning Supplies and Materials","130194066","22/11/2017","Independent Living Service","Independent Living Service","R2705"
"Wolverhampton City Council","http://opendatacommunities.org/id/metropolitan-district-council/wolverhampton","705916","Nobisco Limited","506676","14.34","Cleaning Supplies and Materials","130194066","22/11/2017","Independent Living Service","Independent Living Service","R2705"
"Wolverhampton City Council","http://opendatacommunities.org/id/metropolitan-district-council/wolverhampton","705916","Nobisco Limited","508991","75.50","Cleaning Supplies and Materials","130195902","22/11/2017","Visitor Economy","Bantock - Tea Rooms","R2705"
"Wolverhampton City Council","http://opendatacommunities.org/id/metropolitan-district-council/wolverhampton","705916","Nobisco Limited","508990","1,817.86","Cleaning Supplies and Materials","130195901","22/11/2017","Cleaning","Cleaning of Buildings - General","R2705"
"Wolverhampton City Council","http://opendatacommunities.org/id/metropolitan-district-council/wolverhampton","705916","Nobisco Limited","508808","790.44","Cleaning Supplies and Materials","130195709","22/11/2017","Visitor Economy","The Little Civic","R2705"
"Wolverhampton City Council","http://opendatacommunities.org/id/metropolitan-district-council/wolverhampton","705916","Nobisco Limited","508993","26.40","Cleaning Supplies and Materials","130195904","22/11/2017","Visitor Economy","Art Gallery Tea Room","R2705"
"Wolverhampton City Council","http://opendatacommunities.org/id/metropolitan-district-council/wolverhampton","705916","Nobisco Limited","508989","118.75","Cleaning Supplies and Materials","130195900","22/11/2017","Cleaning","Cleaning of Buildings - General","R2705"
"Wolverhampton City Council","http://opendatacommunities.org/id/metropolitan-district-council/wolverhampton","705916","Nobisco Limited","508807","14.10","Cleaning Supplies and Materials","130195708","22/11/2017","Leisure Services","Bert Williams Leisure Centre","R2705"
"Wolverhampton City Council","http://opendatacommunities.org/id/metropolitan-district-council/wolverhampton","705916","Nobisco Limited","509200","438.07","Cleaning Supplies and Materials","130196095","22/11/2017","Catering","Education Catering - General Overheads","R2705"
"Wolverhampton City Council","http://opendatacommunities.org/id/metropolitan-district-council/wolverhampton","705916","Nobisco Limited","509200","59.64","Cleaning Supplies and Materials","130196095","22/11/2017","Catering","Education Catering - General Overheads","R2705"
"Wolverhampton City Council","http://opendatacommunities.org/id/metropolitan-district-council/wolverhampton","705916","Nobisco Limited","506167","7.77","Cleaning Supplies and Materials","130193707","08/11/2017","Leisure Services","Central Baths","R2705"
"Wolverhampton City Council","http://opendatacommunities.org/id/metropolitan-district-council/wolverhampton","705916","Nobisco Limited","506675","7.50","Cleaning Supplies and Materials","130194065","08/11/2017","Learning Disability Provider","Ernest Bold Court","R2705"
"Wolverhampton City Council","http://opendatacommunities.org/id/metropolitan-district-council/wolverhampton","705916","Nobisco Limited","506894","13.97","Cleaning Supplies and Materials","130194494","08/11/2017","Catering","Education Catering - General Overheads","R2705"
"Wolverhampton City Council","http://opendatacommunities.org/id/metropolitan-district-council/wolverhampton","705916","Nobisco Limited","506894","23.82","Cleaning Supplies and Materials","130194494","08/11/2017","Catering","Education Catering - General Overheads","R2705"
"Wolverhampton City Council","http://opendatacommunities.org/id/metropolitan-district-council/wolverhampton","705916","Nobisco Limited","506172","346.68","Cleaning Supplies and Materials","130193712","08/11/2017","Leisure Services","Bert Williams Leisure Centre","R2705"
"Wolverhampton City Council","http://opendatacommunities.org/id/metropolitan-district-council/wolverhampton","705916","Nobisco Limited","504811","92.44","Cleaning Supplies and Materials","130192593","08/11/2017","Leisure Services","Bert Williams Leisure Centre Caf�","R2705"
"Wolverhampton City Council","http://opendatacommunities.org/id/metropolitan-district-council/wolverhampton","705916","Nobisco Limited","503184","22.94","Cleaning Supplies and Materials","130191195","08/11/2017","Leisure Services","Bert Williams Leisure Centre Caf�","R2705"
"Wolverhampton City Council","http://opendatacommunities.org/id/metropolitan-district-council/wolverhampton","705916","Nobisco Limited","506173","36.34","Cleaning Supplies and Materials","130193713","08/11/2017","Visitor Economy","Civic Halls Non-Direct Event Management Account","R2705"
"Wolverhampton City Council","http://opendatacommunities.org/id/metropolitan-district-council/wolverhampton","705916","Nobisco Limited","508809","144.00","Cleaning Supplies and Materials","130195710","24/11/2017","Older People Provider Services","Blakenhall Resource Centre","R2705"
"Wolverhampton City Council","http://opendatacommunities.org/id/metropolitan-district-council/wolverhampton","705916","Nobisco Limited","508992","118.34","Cleaning Supplies and Materials","130195903","24/11/2017","Specialist Support","Upper Pendeford Farm Short Breaks Centre","R2705"
"Wolverhampton City Council","http://opendatacommunities.org/id/metropolitan-district-council/wolverhampton","705916","Nobisco Limited","508992","0.30","Cleaning Supplies and Materials","130195903","24/11/2017","Specialist Support","Upper Pendeford Farm Short Breaks Centre","R2705"
"Wolverhampton City Council","http://opendatacommunities.org/id/metropolitan-district-council/wolverhampton","705916","Nobisco Limited","505626","13.40","Cleaning Supplies and Materials","130193327","01/11/2017","Leisure Services","Central Baths","R2705"
"Wolverhampton City Council","http://opendatacommunities.org/id/metropolitan-district-council/wolverhampton","705916","Nobisco Limited","505626","-13.40","Cleaning Supplies and Materials","130193327","01/11/2017","Leisure Services","Central Baths","R2705"
"Wolverhampton City Council","http://opendatacommunities.org/id/metropolitan-district-council/wolverhampton","705916","Nobisco Limited","505626","13.32","Cleaning Supplies and Materials","130193327","01/11/2017","Leisure Services","Central Baths","R2705"
"Wolverhampton City Council","http://opendatacommunities.org/id/metropolitan-district-council/wolverhampton","705916","Nobisco Limited","505439","1,001.63","Cleaning Supplies and Materials","130193101","01/11/2017","Visitor Economy","Civic Halls Non-Direct Event Management Account","R2705"
"Wolverhampton City Council","http://opendatacommunities.org/id/metropolitan-district-council/wolverhampton","705916","Nobisco Limited","505438","379.96","Cleaning Supplies and Materials","130193100","01/11/2017","Visitor Economy","Catering Overhead Account","R2705"
"Wolverhampton City Council","http://opendatacommunities.org/id/metropolitan-district-council/wolverhampton","705916","Nobisco Limited","505627","4.30","Cleaning Supplies and Materials","130193328","01/11/2017","Visitor Economy","Civic Halls Non-Direct Event Management Account","R2705"
"Wolverhampton City Council","http://opendatacommunities.org/id/metropolitan-district-council/wolverhampton","705916","Nobisco Limited","505995","149.99","Cleaning Supplies and Materials","130193485","01/11/2017","Visitor Economy","Bantock - Tea Rooms","R2705"
"Wolverhampton City Council","http://opendatacommunities.org/id/metropolitan-district-council/wolverhampton","705916","Nobisco Limited","505278","330.82","Cleaning Supplies and Materials","130192930","01/11/2017","Leisure Services","Central Baths","R2705"
"Wolverhampton City Council","http://opendatacommunities.org/id/metropolitan-district-council/wolverhampton","705916","Nobisco Limited","505278","-330.82","Cleaning Supplies and Materials","130192930","01/11/2017","Leisure Services","Central Baths","R2705"
"Wolverhampton City Council","http://opendatacommunities.org/id/metropolitan-district-council/wolverhampton","705916","Nobisco Limited","505278","343.03","Cleaning Supplies and Materials","130192930","01/11/2017","Leisure Services","Central Baths","R2705"
"Wolverhampton City Council","http://opendatacommunities.org/id/metropolitan-district-council/wolverhampton","705916","Nobisco Limited","508988","131.31","Cleaning Supplies and Materials","130195899","22/11/2017","Cleaning","Cleaning of Buildings - General","R2705"
"Wolverhampton City Council","http://opendatacommunities.org/id/metropolitan-district-council/wolverhampton","705916","Nobisco Limited","507791","40.00","Cleaning Supplies and Materials","130194828","17/11/2017","Environmental Maintenance","Ground Maintenance East","R2705"
"Wolverhampton City Council","http://opendatacommunities.org/id/metropolitan-district-council/wolverhampton","705916","Nobisco Limited","508323","113.44","Cleaning Supplies and Materials","130195352","17/11/2017","Learning Disability Provider","Ernest Bold Court","R2705"
"Wolverhampton City Council","http://opendatacommunities.org/id/metropolitan-district-council/wolverhampton","705916","Nobisco Limited","506166","12.46","Cleaning Supplies and Materials","130193706","08/11/2017","Parking Services","Car Parks Operational Staff","R2705"
"Wolverhampton City Council","http://opendatacommunities.org/id/metropolitan-district-council/wolverhampton","705916","Nobisco Limited","506166","2.97","Cleaning Supplies and Materials","130193706","08/11/2017","Parking Services","Car Parks Operational Staff","R2705"
"Wolverhampton City Council","http://opendatacommunities.org/id/metropolitan-district-council/wolverhampton","705916","Nobisco Limited","506168","58.71","Cleaning Supplies and Materials","130193708","08/11/2017","Learning Disability Provider","Ernest Bold Court","R2705"
"Wolverhampton City Council","http://opendatacommunities.org/id/metropolitan-district-council/wolverhampton","705916","Nobisco Limited","506169","78.43","Cleaning Supplies and Materials","130193709","08/11/2017","Leisure Services","Bert Williams Leisure Centre Caf�","R2705"
"Wolverhampton City Council","http://opendatacommunities.org/id/metropolitan-district-council/wolverhampton","705916","Nobisco Limited","509947","27.80","Cleaning Supplies and Materials","130196554","29/11/2017","Leisure Services","Bert Williams Leisure Centre","R2705"
"Wolverhampton City Council","http://opendatacommunities.org/id/metropolitan-district-council/wolverhampton","705916","Nobisco Limited","510419","348.86","Cleaning Supplies and Materials","130196771","29/11/2017","Leisure Services","Bert Williams Leisure Centre","R2705"
"Wolverhampton City Council","http://opendatacommunities.org/id/metropolitan-district-council/wolverhampton","705916","Nobisco Limited","510415","110.10","Cleaning Supplies and Materials","130196767","29/11/2017","Leisure Services","Central Baths","R2705"
"Wolverhampton City Council","http://opendatacommunities.org/id/metropolitan-district-council/wolverhampton","705916","Nobisco Limited","506170","434.40","Cleaning Supplies and Materials","130193710","08/11/2017","Leisure Services","Aldersley Leisure Village","R2705"
"Wolverhampton City Council","http://opendatacommunities.org/id/metropolitan-district-council/wolverhampton","705916","Nobisco Limited","506166","6.70","Cleaning Supplies and Materials","130193706","08/11/2017","Parking Services","Car Parks Operational Staff","R2705"
"Wolverhampton City Council","http://opendatacommunities.org/id/metropolitan-district-council/wolverhampton","705916","Nobisco Limited","506673","7.88","Cleaning Supplies and Materials","130194063","08/11/2017","Catering","Education Catering - General Overheads","R2705"
"Wolverhampton City Council","http://opendatacommunities.org/id/metropolitan-district-council/wolverhampton","705916","Nobisco Limited","506673","27.57","Cleaning Supplies and Materials","130194063","08/11/2017","Catering","Education Catering - General Overheads","R2705"
"Wolverhampton City Council","http://opendatacommunities.org/id/metropolitan-district-council/wolverhampton","705916","Nobisco Limited","505997","1,151.84","Cleaning Supplies and Materials","130193487","01/11/2017","Visitor Economy","Catering Overhead Account","R2705"
"Wolverhampton City Council","http://opendatacommunities.org/id/metropolitan-district-council/wolverhampton","705916","Nobisco Limited","504267","62.92","Cleaning Supplies and Materials","130192118","01/11/2017","Environmental Maintenance","Parks - Ranger Service","R2705"
"Wolverhampton City Council","http://opendatacommunities.org/id/metropolitan-district-council/wolverhampton","705916","Nobisco Limited","504267","257.92","Cleaning Supplies and Materials","130192118","01/11/2017","Environmental Maintenance","Parks - Ranger Service","R2705"
"Wolverhampton City Council","http://opendatacommunities.org/id/metropolitan-district-council/wolverhampton","705916","Nobisco Limited","504267","-62.92","Cleaning Supplies and Materials","130192118","01/11/2017","Environmental Maintenance","Parks - Ranger Service","R2705"
"Wolverhampton City Council","http://opendatacommunities.org/id/metropolitan-district-council/wolverhampton","705916","Nobisco Limited","504267","60.37","Cleaning Supplies and Materials","130192118","01/11/2017","Environmental Maintenance","Parks - Ranger Service","R2705"
"Wolverhampton City Council","http://opendatacommunities.org/id/metropolitan-district-council/wolverhampton","705916","Nobisco Limited","505824","47.69","Cleaning Supplies and Materials","130193479","01/11/2017","Visitor Economy","Art Gallery Tea Room","R2705"
"Wolverhampton City Council","http://opendatacommunities.org/id/metropolitan-district-council/wolverhampton","705916","Nobisco Limited","505822","66.38","Cleaning Supplies and Materials","130193477","01/11/2017","Visitor Economy","Bantock - Tea Rooms","R2705"
"Wolverhampton City Council","http://opendatacommunities.org/id/metropolitan-district-council/wolverhampton","705916","Nobisco Limited","504602","66.96","Cleaning Supplies and Materials","130192442","01/11/2017","Environmental Maintenance","Parks - Ranger Service","R2705"
"Wolverhampton City Council","http://opendatacommunities.org/id/metropolitan-district-council/wolverhampton","705916","Nobisco Limited","505821","10.20","Cleaning Supplies and Materials","130193476","03/11/2017","Markets","Wolverhampton Indoor and Open Market","R2705"
"Wolverhampton City Council","http://opendatacommunities.org/id/metropolitan-district-council/wolverhampton","705916","Nobisco Limited","507790","427.89","Cleaning Supplies and Materials","130194827","15/11/2017","Markets","Bilston Market and Licensed Operations","R2705"
"Wolverhampton City Council","http://opendatacommunities.org/id/metropolitan-district-council/wolverhampton","705916","Nobisco Limited","507796","240.20","Cleaning Supplies and Materials","130194833","15/11/2017","Visitor Economy","Civic Halls Non-Direct Event Management Account","R2705"
"Wolverhampton City Council","http://opendatacommunities.org/id/metropolitan-district-council/wolverhampton","705916","Nobisco Limited","507786","35.45","Cleaning Supplies and Materials","130194823","15/11/2017","Catering","Education Catering - General Overheads","R2705"
"Wolverhampton City Council","http://opendatacommunities.org/id/metropolitan-district-council/wolverhampton","705916","Nobisco Limited","507784","25.70","Cleaning Supplies and Materials","130194821","15/11/2017","Catering","Education Catering - General Overheads","R2705"
"Wolverhampton City Council","http://opendatacommunities.org/id/metropolitan-district-council/wolverhampton","705916","Nobisco Limited","507785","5.30","Cleaning Supplies and Materials","130194822","15/11/2017","Catering","Education Catering - General Overheads","R2705"
"Wolverhampton City Council","http://opendatacommunities.org/id/metropolitan-district-council/wolverhampton","705916","Nobisco Limited","507785","20.40","Cleaning Supplies and Materials","130194822","15/11/2017","Catering","Education Catering - General Overheads","R2705"
"Wolverhampton City Council","http://opendatacommunities.org/id/metropolitan-district-council/wolverhampton","705916","Nobisco Limited","507391","3.71","Cleaning Supplies and Materials","130194651","15/11/2017","Catering","Education Catering - General Overheads","R2705"
"Wolverhampton City Council","http://opendatacommunities.org/id/metropolitan-district-council/wolverhampton","705916","Nobisco Limited","508061","295.60","Cleaning Supplies and Materials","130195178","17/11/2017","Visitor Economy","The Little Civic","R2705"
"Wolverhampton City Council","http://opendatacommunities.org/id/metropolitan-district-council/wolverhampton","705916","Nobisco Limited","507145","29.06","Cleaning Supplies and Materials","130194497","17/11/2017","Visitor Economy","Art Gallery Tea Room","R2705"
"Wolverhampton City Council","http://opendatacommunities.org/id/metropolitan-district-council/wolverhampton","705916","Nobisco Limited","507146","14.58","Cleaning Supplies and Materials","130194498","17/11/2017","Visitor Economy","The Little Civic","R2705"
"Wolverhampton City Council","http://opendatacommunities.org/id/metropolitan-district-council/wolverhampton","705916","Nobisco Limited","507794","23.78","Cleaning Supplies and Materials","130194831","17/11/2017","Visitor Economy","Art Gallery Tea Room","R2705"
"Wolverhampton City Council","http://opendatacommunities.org/id/metropolitan-district-council/wolverhampton","705916","Nobisco Limited","508059","907.64","Cleaning Supplies and Materials","130195176","17/11/2017","Visitor Economy","Catering Overhead Account","R2705"
"Wolverhampton City Council","http://opendatacommunities.org/id/metropolitan-district-council/wolverhampton","705916","Nobisco Limited","506896","159.67","Cleaning Supplies and Materials","130194496","17/11/2017","Visitor Economy","Bantock - Tea Rooms","R2705"
"Wolverhampton City Council","http://opendatacommunities.org/id/metropolitan-district-council/wolverhampton","705916","Nobisco Limited","508060","2,708.66","Cleaning Supplies and Materials","130195177","17/11/2017","Visitor Economy","Bantock - Tea Rooms","R2705"
"Wolverhampton City Council","http://opendatacommunities.org/id/metropolitan-district-council/wolverhampton","705916","Nobisco Limited","510417","168.70","Cleaning Supplies and Materials","130196769","29/11/2017","Leisure Services","Bert Williams Leisure Centre Caf�","R2705"
"Wolverhampton City Council","http://opendatacommunities.org/id/metropolitan-district-council/wolverhampton","705916","Nobisco Limited","509759","327.57","Cleaning Supplies and Materials","130196547","29/11/2017","Visitor Economy","The Little Civic","R2705"
"Wolverhampton City Council","http://opendatacommunities.org/id/metropolitan-district-council/wolverhampton","705916","Nobisco Limited","509946","95.16","Protective Clothing","130196553","29/11/2017","Older People Provider Services","Reablement Team","R4200"
"Wolverhampton City Council","http://opendatacommunities.org/id/metropolitan-district-council/wolverhampton","705916","Nobisco Limited","510414","1,683.00","Cleaning Supplies and Materials","130196766","29/11/2017","Cleaning","Cleaning of Buildings - General","R2705"
"Wolverhampton City Council","http://opendatacommunities.org/id/metropolitan-district-council/wolverhampton","705916","Nobisco Limited","510413","194.29","Cleaning Supplies and Materials","130196765","29/11/2017","Catering","Education Catering - General Overheads","R2705"
"Wolverhampton City Council","http://opendatacommunities.org/id/metropolitan-district-council/wolverhampton","705916","Nobisco Limited","510413","25.40","Cleaning Supplies and Materials","130196765","29/11/2017","Catering","Education Catering - General Overheads","R2705"
"Wolverhampton City Council","http://opendatacommunities.org/id/metropolitan-district-council/wolverhampton","705916","Nobisco Limited","509754","119.20","Cleaning Supplies and Materials","130196542","29/11/2017","Bereavement Services","Coroners","R2705"
"Wolverhampton City Council","http://opendatacommunities.org/id/metropolitan-district-council/wolverhampton","705916","Nobisco Limited","502756","19.59","Cleaning Supplies and Materials","130197187","29/11/2017","Schools","Lanesfield Primary School","R2705"
"Wolverhampton City Council","http://opendatacommunities.org/id/metropolitan-district-council/wolverhampton","705916","Nobisco Limited","510413","551.00","Cleaning Supplies and Materials","130196765","29/11/2017","Catering","Education Catering - General Overheads","R2705"
"Wolverhampton City Council","http://opendatacommunities.org/id/metropolitan-district-council/wolverhampton","705916","Nobisco Limited","509944","36.89","Cleaning Supplies and Materials","130196416","29/11/2017","Learning Disability Provider","Ernest Bold Court","R2705"
"Wolverhampton City Council","http://opendatacommunities.org/id/metropolitan-district-council/wolverhampton","705916","Nobisco Limited","510416","1,890.85","Cleaning Supplies and Materials","130196768","29/11/2017","Cleaning","Cleaning of Buildings - General","R2705"
"Wolverhampton City Council","http://opendatacommunities.org/id/metropolitan-district-council/wolverhampton","705916","Nobisco Limited","510416","0.05","Cleaning Supplies and Materials","130196768","29/11/2017","Cleaning","Cleaning of Buildings - General","R2705"
"Wolverhampton City Council","http://opendatacommunities.org/id/metropolitan-district-council/wolverhampton","705916","Nobisco Limited","509940","50.40","Cleaning Supplies and Materials","130196549","29/11/2017","Cleaning","Cleaning of Buildings - General","R2705"
"Wolverhampton City Council","http://opendatacommunities.org/id/metropolitan-district-council/wolverhampton","705916","Nobisco Limited","506895","232.75","Cleaning Supplies and Materials","130194495","10/11/2017","Cleaning","Cleaning of Buildings - General","R2705"
"Wolverhampton City Council","http://opendatacommunities.org/id/metropolitan-district-council/wolverhampton","705916","Nobisco Limited","506895","0.05","Cleaning Supplies and Materials","130194495","10/11/2017","Cleaning","Cleaning of Buildings - General","R2705"
"Wolverhampton City Council","http://opendatacommunities.org/id/metropolitan-district-council/wolverhampton","705916","Nobisco Limited","505819","1,774.18","Cleaning Supplies and Materials","130193474","10/11/2017","Cleaning","Cleaning of Buildings - General","R2705"
"Wolverhampton City Council","http://opendatacommunities.org/id/metropolitan-district-council/wolverhampton","705916","Nobisco Limited","509939","138.72","Cleaning Supplies and Materials","130196548","29/11/2017","Catering","Education Catering - General Overheads","R2705"
"Wolverhampton City Council","http://opendatacommunities.org/id/metropolitan-district-council/wolverhampton","705916","Nobisco Limited","510191","51.56","Cleaning Supplies and Materials","130196556","29/11/2017","Catering","Education Catering - General Overheads","R2705"
"Wolverhampton City Council","http://opendatacommunities.org/id/metropolitan-district-council/wolverhampton","705916","Nobisco Limited","510191","4.03","Cleaning Supplies and Materials","130196556","29/11/2017","Catering","Education Catering - General Overheads","R2705"
"Wolverhampton City Council","http://opendatacommunities.org/id/metropolitan-district-council/wolverhampton","705916","Nobisco Limited","510191","9.57","Cleaning Supplies and Materials","130196556","29/11/2017","Catering","Education Catering - General Overheads","R2705"
"Wolverhampton City Council","http://opendatacommunities.org/id/metropolitan-district-council/wolverhampton","705916","Nobisco Limited","510191","1.22","Cleaning Supplies and Materials","130196556","29/11/2017","Catering","Education Catering - General Overheads","R2705"
"Wolverhampton City Council","http://opendatacommunities.org/id/metropolitan-district-council/wolverhampton","705916","Nobisco Limited","509942","80.88","Cleaning Supplies and Materials","130196551","29/11/2017","Cleaning","Cleaning of Buildings - General","R2705"
"Wolverhampton City Council","http://opendatacommunities.org/id/metropolitan-district-council/wolverhampton","705916","Nobisco Limited","509945","6.06","Cleaning Supplies and Materials","130196552","29/11/2017","Leisure Services","Bert Williams Leisure Centre Caf�","R2705"
"Wolverhampton City Council","http://opendatacommunities.org/id/metropolitan-district-council/wolverhampton","705916","Nobisco Limited","509755","10.29","Cleaning Supplies and Materials","130196543","29/11/2017","Learning Disability Provider","Ernest Bold Court","R2705"
"Wolverhampton City Council","http://opendatacommunities.org/id/metropolitan-district-council/wolverhampton","705916","Nobisco Limited","509756","4.44","Cleaning Supplies and Materials","130196544","29/11/2017","Learning Disability Provider","Duke Street Bungalows","R2705"
"Wolverhampton City Council","http://opendatacommunities.org/id/metropolitan-district-council/wolverhampton","705916","Nobisco Limited","509757","161.04","Protective Clothing","130196545","29/11/2017","Older People Provider Services","Reablement Team","R4200"
"Wolverhampton City Council","http://opendatacommunities.org/id/metropolitan-district-council/wolverhampton","705916","Nobisco Limited","509757","27.25","Cleaning Supplies and Materials","130196545","29/11/2017","Older People Provider Services","Reablement Team","R2705"
"Wolverhampton City Council","http://opendatacommunities.org/id/metropolitan-district-council/wolverhampton","705916","Nobisco Limited","506165","1.23","Cleaning Supplies and Materials","130193705","08/11/2017","Cleaning","Cleaning of Buildings - General","R2705"
"Wolverhampton City Council","http://opendatacommunities.org/id/metropolitan-district-council/wolverhampton","705916","Nobisco Limited","508627","56.10","Cleaning Supplies and Materials","130195353","22/11/2017","Markets","Bilston Market and Licensed Operations","R2705"
"Wolverhampton City Council","http://opendatacommunities.org/id/metropolitan-district-council/wolverhampton","705916","Nobisco Limited","508628","114.14","Cleaning Supplies and Materials","130195354","22/11/2017","Leisure Services","Bert Williams Leisure Centre Caf�","R2705"
"Wolverhampton City Council","http://opendatacommunities.org/id/metropolitan-district-council/wolverhampton","705916","Nobisco Limited","505279","7.98","Cleaning Supplies and Materials","130192931","01/11/2017","Adult Education","The Maltings","R2705"
"Wolverhampton City Council","http://opendatacommunities.org/id/metropolitan-district-council/wolverhampton","705916","Nobisco Limited","505820","9.90","Cleaning Supplies and Materials","130193475","01/11/2017","Parking Services","Car Parks Operational Staff","R2705"
"Wolverhampton City Council","http://opendatacommunities.org/id/metropolitan-district-council/wolverhampton","705916","Nobisco Limited","505820","2.00","Cleaning Supplies and Materials","130193475","01/11/2017","Parking Services","Car Parks Operational Staff","R2705"
"Wolverhampton City Council","http://opendatacommunities.org/id/metropolitan-district-council/wolverhampton","705916","Nobisco Limited","505820","5.70","Cleaning Supplies and Materials","130193475","01/11/2017","Parking Services","Car Parks Operational Staff","R2705"
"Wolverhampton City Council","http://opendatacommunities.org/id/metropolitan-district-council/wolverhampton","705916","Nobisco Limited","505820","6.36","Cleaning Supplies and Materials","130193475","01/11/2017","Parking Services","Car Parks Operational Staff","R2705"
"Wolverhampton City Council","http://opendatacommunities.org/id/metropolitan-district-council/wolverhampton","705916","Nobisco Limited","505820","5.24","Cleaning Supplies and Materials","130193475","01/11/2017","Parking Services","Car Parks Operational Staff","R2705"
"Wolverhampton City Council","http://opendatacommunities.org/id/metropolitan-district-council/wolverhampton","705916","Nobisco Limited","505820","14.61","Cleaning Supplies and Materials","130193475","01/11/2017","Parking Services","Car Parks Operational Staff","R2705"
"Wolverhampton City Council","http://opendatacommunities.org/id/metropolitan-district-council/wolverhampton","705916","Nobisco Limited","505820","27.52","Cleaning Supplies and Materials","130193475","01/11/2017","Parking Services","Car Parks Operational Staff","R2705"
"Wolverhampton City Council","http://opendatacommunities.org/id/metropolitan-district-council/wolverhampton","705916","Nobisco Limited","505820","12.98","Cleaning Supplies and Materials","130193475","01/11/2017","Parking Services","Car Parks Operational Staff","R2705"
"Wolverhampton City Council","http://opendatacommunities.org/id/metropolitan-district-council/wolverhampton","705916","Nobisco Limited","505820","13.38","Cleaning Supplies and Materials","130193475","01/11/2017","Parking Services","Car Parks Operational Staff","R2705"
"Wolverhampton City Council","http://opendatacommunities.org/id/metropolitan-district-council/wolverhampton","705916","Nobisco Limited","505990","116.37","Cleaning Supplies and Materials","130193481","01/11/2017","Catering","Education Catering - General Overheads","R2705"
"Wolverhampton City Council","http://opendatacommunities.org/id/metropolitan-district-council/wolverhampton","705916","Nobisco Limited","505992","52.99","Cleaning Supplies and Materials","130193483","01/11/2017","Catering","Education Catering - General Overheads","R2705"
"Wolverhampton City Council","http://opendatacommunities.org/id/metropolitan-district-council/wolverhampton","705916","Nobisco Limited","505818","156.83","Cleaning Supplies and Materials","130193473","01/11/2017","Catering","Education Catering - General Overheads","R2705"
"Wolverhampton City Council","http://opendatacommunities.org/id/metropolitan-district-council/wolverhampton","705916","Nobisco Limited","505994","1,958.16","Cleaning Supplies and Materials","130193484","01/11/2017","Environmental Maintenance","Ground Maintenance East","R2705"
"Wolverhampton City Council","http://opendatacommunities.org/id/metropolitan-district-council/wolverhampton","705916","Nobisco Limited","8108","-10.28","Cleaning Supplies and Materials","130193575","01/11/2017","Catering","Education Catering - General Overheads","R2705"
"Wolverhampton City Council","http://opendatacommunities.org/id/metropolitan-district-council/wolverhampton","705916","Nobisco Limited","505996","5.45","Cleaning Supplies and Materials","130193486","01/11/2017","Older People Provider Services","Bradley Lodge Resource Centre","R2705"
"Wolverhampton City Council","http://opendatacommunities.org/id/metropolitan-district-council/wolverhampton","705916","Nobisco Limited","505825","3.98","Cleaning Supplies and Materials","130193480","01/11/2017","Visitor Economy","The Little Civic","R2705"
"Wolverhampton City Council","http://opendatacommunities.org/id/metropolitan-district-council/wolverhampton","705916","Nobisco Limited","505991","1,371.84","Cleaning Supplies and Materials","130193482","01/11/2017","Cleaning","Cleaning of Buildings - General","R2705"
"Wolverhampton City Council","http://opendatacommunities.org/id/metropolitan-district-council/wolverhampton","705916","Nobisco Limited","505991","-1,371.84","Cleaning Supplies and Materials","130193482","01/11/2017","Cleaning","Cleaning of Buildings - General","R2705"
"Wolverhampton City Council","http://opendatacommunities.org/id/metropolitan-district-council/wolverhampton","705916","Nobisco Limited","505991","1,399.51","Cleaning Supplies and Materials","130193482","01/11/2017","Cleaning","Cleaning of Buildings - General","R2705"
"Wolverhampton City Council","http://opendatacommunities.org/id/metropolitan-district-council/wolverhampton","705926","Normans (Burton-On-Trent) Limited","INV1131619","140.00","Equipment - R & M","130192763","17/11/2017","Standards and Vulnerable Pupils","Music Support Team","R4003"
"Wolverhampton City Council","http://opendatacommunities.org/id/metropolitan-district-council/wolverhampton","705926","Normans (Burton-On-Trent) Limited","INV1130390","14.00","Equipment - R & M","130191767","08/11/2017","Standards and Vulnerable Pupils","Music Support Team","R4003"
"Wolverhampton City Council","http://opendatacommunities.org/id/metropolitan-district-council/wolverhampton","705926","Normans (Burton-On-Trent) Limited","INV1130390","16.00","Equipment - R & M","130191767","08/11/2017","Standards and Vulnerable Pupils","Music Support Team","R4003"
"Wolverhampton City Council","http://opendatacommunities.org/id/metropolitan-district-council/wolverhampton","705926","Normans (Burton-On-Trent) Limited","INV1130390","50.00","Equipment - R & M","130191767","08/11/2017","Standards and Vulnerable Pupils","Music Support Team","R4003"
"Wolverhampton City Council","http://opendatacommunities.org/id/metropolitan-district-council/wolverhampton","705926","Normans (Burton-On-Trent) Limited","INV1130391","24.00","Equipment - R & M","130191768","08/11/2017","Standards and Vulnerable Pupils","Music Support Team","R4003"
"Wolverhampton City Council","http://opendatacommunities.org/id/metropolitan-district-council/wolverhampton","705926","Normans (Burton-On-Trent) Limited","INV1130966","2.00","Equipment - R & M","130192304","17/11/2017","Standards and Vulnerable Pupils","Music Support Team","R4003"
"Wolverhampton City Council","http://opendatacommunities.org/id/metropolitan-district-council/wolverhampton","705926","Normans (Burton-On-Trent) Limited","INV1131210","18.00","Equipment - R & M","130192444","17/11/2017","Standards and Vulnerable Pupils","Music Support Team","R4003"
"Wolverhampton City Council","http://opendatacommunities.org/id/metropolitan-district-council/wolverhampton","705926","Normans (Burton-On-Trent) Limited","INV1130695","2.00","Equipment - R & M","130191924","08/11/2017","Standards and Vulnerable Pupils","Music Support Team","R4003"
"Wolverhampton City Council","http://opendatacommunities.org/id/metropolitan-district-council/wolverhampton","705938","North Yorkshire Mobility & Safety","210896","863.90","Adaptations","130192305","08/11/2017","Independent Living Service","Independent Living Service","R4411"
"Wolverhampton City Council","http://opendatacommunities.org/id/metropolitan-district-council/wolverhampton","705938","North Yorkshire Mobility & Safety","210896","382.00","Adaptations","130192305","08/11/2017","Independent Living Service","Independent Living Service","R4411"
"Wolverhampton City Council","http://opendatacommunities.org/id/metropolitan-district-council/wolverhampton","705938","North Yorkshire Mobility & Safety","210896","451.00","Adaptations","130192305","08/11/2017","Independent Living Service","Independent Living Service","R4411"
"Wolverhampton City Council","http://opendatacommunities.org/id/metropolitan-district-council/wolverhampton","705945","Northgate Public Services (UK) Limited","91397321","2,682.25","Computing - Purchase of Software","130193329","15/11/2017","Revenues & Benefits","Revenues","R4531"
"Wolverhampton City Council","http://opendatacommunities.org/id/metropolitan-district-council/wolverhampton","705945","Northgate Public Services (UK) Limited","91397321","98.17","Computing - Purchase of Software","130193329","15/11/2017","Revenues & Benefits","Revenues","R4531"
"Wolverhampton City Council","http://opendatacommunities.org/id/metropolitan-district-council/wolverhampton","705945","Northgate Public Services (UK) Limited","91397987","44,804.46","Computing - Purchase of Software","130194834","29/11/2017","Revenues & Benefits","Revenues","R4531"
"Wolverhampton City Council","http://opendatacommunities.org/id/metropolitan-district-council/wolverhampton","705945","Northgate Public Services (UK) Limited","91397431","78,252.56","Computing - Purchase of Software","130193576","22/11/2017","Revenues & Benefits","Revenues","R4531"
"Wolverhampton City Council","http://opendatacommunities.org/id/metropolitan-district-council/wolverhampton","705945","Northgate Public Services (UK) Limited","91397988","6,316.00","Computing - Purchase of Software","130194657","29/11/2017","Revenues & Benefits","Revenues","R4531"
"Wolverhampton City Council","http://opendatacommunities.org/id/metropolitan-district-council/wolverhampton","705945","Northgate Public Services (UK) Limited","91397807","1,552.75","Services - Professional Fees","130194656","29/11/2017","Customer Services","City Direct","R4400"
"Wolverhampton City Council","http://opendatacommunities.org/id/metropolitan-district-council/wolverhampton","705946","Northgate Vehicle Hire Limited","SL04694821","448.80","Hire of Vehicles","190392582","15/11/2017","Fleet Services","Fleet Management","R3200"
"Wolverhampton City Council","http://opendatacommunities.org/id/metropolitan-district-council/wolverhampton","705946","Northgate Vehicle Hire Limited","SL04694822IN","224.40","Hire of Vehicles","190392583","15/11/2017","Fleet Services","Fleet Management","R3200"
"Wolverhampton City Council","http://opendatacommunities.org/id/metropolitan-district-council/wolverhampton","705946","Northgate Vehicle Hire Limited","SL04694824IN","224.40","Hire of Vehicles","190392585","15/11/2017","Fleet Services","Fleet Management","R3200"
"Wolverhampton City Council","http://opendatacommunities.org/id/metropolitan-district-council/wolverhampton","705946","Northgate Vehicle Hire Limited","SL04694829IN","224.40","Hire of Vehicles","190392590","15/11/2017","Fleet Services","Fleet Management","R3200"
"Wolverhampton City Council","http://opendatacommunities.org/id/metropolitan-district-council/wolverhampton","705946","Northgate Vehicle Hire Limited","SL04694830IN","224.40","Hire of Vehicles","190392591","15/11/2017","Fleet Services","Fleet Management","R3200"
"Wolverhampton City Council","http://opendatacommunities.org/id/metropolitan-district-council/wolverhampton","705946","Northgate Vehicle Hire Limited","SL04694812IN","342.32","Hire of Vehicles","190392574","15/11/2017","Fleet Services","Fleet Management","R3200"
"Wolverhampton City Council","http://opendatacommunities.org/id/metropolitan-district-council/wolverhampton","705946","Northgate Vehicle Hire Limited","SL04694813IN","342.32","Hire of Vehicles","190392575","15/11/2017","Fleet Services","Fleet Management","R3200"
"Wolverhampton City Council","http://opendatacommunities.org/id/metropolitan-district-council/wolverhampton","705946","Northgate Vehicle Hire Limited","SL04694814IN","342.32","Hire of Vehicles","190392576","15/11/2017","Fleet Services","Fleet Management","R3200"
"Wolverhampton City Council","http://opendatacommunities.org/id/metropolitan-district-council/wolverhampton","705946","Northgate Vehicle Hire Limited","SL04694815IN","342.32","Hire of Vehicles","190392577","15/11/2017","Fleet Services","Fleet Management","R3200"
"Wolverhampton City Council","http://opendatacommunities.org/id/metropolitan-district-council/wolverhampton","705946","Northgate Vehicle Hire Limited","SL04694816IN","342.32","Hire of Vehicles","190392578","15/11/2017","Fleet Services","Fleet Management","R3200"
"Wolverhampton City Council","http://opendatacommunities.org/id/metropolitan-district-council/wolverhampton","705946","Northgate Vehicle Hire Limited","SL04694826IN","342.32","Hire of Vehicles","190392587","15/11/2017","Fleet Services","Fleet Management","R3200"
"Wolverhampton City Council","http://opendatacommunities.org/id/metropolitan-district-council/wolverhampton","705946","Northgate Vehicle Hire Limited","SL04694820IN","342.32","Hire of Vehicles","190392581","15/11/2017","Fleet Services","Fleet Management","R3200"
"Wolverhampton City Council","http://opendatacommunities.org/id/metropolitan-district-council/wolverhampton","705946","Northgate Vehicle Hire Limited","SL04694827IN","335.50","Hire of Vehicles","190392588","15/11/2017","Fleet Services","Fleet Management","R3200"
"Wolverhampton City Council","http://opendatacommunities.org/id/metropolitan-district-council/wolverhampton","705946","Northgate Vehicle Hire Limited","SL04694817IN","306.46","Hire of Vehicles","190392579","15/11/2017","Fleet Services","Fleet Management","R3200"
"Wolverhampton City Council","http://opendatacommunities.org/id/metropolitan-district-council/wolverhampton","705946","Northgate Vehicle Hire Limited","SL04694811IN","306.46","Hire of Vehicles","190392573","15/11/2017","Fleet Services","Fleet Management","R3200"
"Wolverhampton City Council","http://opendatacommunities.org/id/metropolitan-district-council/wolverhampton","705946","Northgate Vehicle Hire Limited","SL04694818IN","306.46","Hire of Vehicles","190392580","15/11/2017","Fleet Services","Fleet Management","R3200"
"Wolverhampton City Council","http://opendatacommunities.org/id/metropolitan-district-council/wolverhampton","705946","Northgate Vehicle Hire Limited","SL04694825IN","306.46","Hire of Vehicles","190392586","15/11/2017","Fleet Services","Fleet Management","R3200"
"Wolverhampton City Council","http://opendatacommunities.org/id/metropolitan-district-council/wolverhampton","705946","Northgate Vehicle Hire Limited","SL04694823IN","306.46","Hire of Vehicles","190392584","15/11/2017","Fleet Services","Fleet Management","R3200"
"Wolverhampton City Council","http://opendatacommunities.org/id/metropolitan-district-council/wolverhampton","705946","Northgate Vehicle Hire Limited","SL04694828IN","306.46","Hire of Vehicles","190392589","15/11/2017","Fleet Services","Fleet Management","R3200"
"Wolverhampton City Council","http://opendatacommunities.org/id/metropolitan-district-council/wolverhampton","705946","Northgate Vehicle Hire Limited","SL04694838IN","224.40","Hire of Vehicles","190392598","15/11/2017","Fleet Services","Fleet Management","R3200"
"Wolverhampton City Council","http://opendatacommunities.org/id/metropolitan-district-council/wolverhampton","705946","Northgate Vehicle Hire Limited","SL04703263IN","224.40","Hire of Vehicles","190392607","15/11/2017","Fleet Services","Fleet Management","R3200"
"Wolverhampton City Council","http://opendatacommunities.org/id/metropolitan-district-council/wolverhampton","705946","Northgate Vehicle Hire Limited","NTGSL0036344","-29.13","Hire of Vehicles","190392557","15/11/2017","Fleet Services","Fleet Management","R3200"
"Wolverhampton City Council","http://opendatacommunities.org/id/metropolitan-district-council/wolverhampton","705946","Northgate Vehicle Hire Limited","SL00169894CR","-19.42","Hire of Vehicles","190392559","15/11/2017","Fleet Services","Fleet Management","R3200"
"Wolverhampton City Council","http://opendatacommunities.org/id/metropolitan-district-council/wolverhampton","705946","Northgate Vehicle Hire Limited","SL04694801IN","342.32","Hire of Vehicles","190392564","15/11/2017","Fleet Services","Fleet Management","R3200"
"Wolverhampton City Council","http://opendatacommunities.org/id/metropolitan-district-council/wolverhampton","705946","Northgate Vehicle Hire Limited","SL04694845IN","173.20","Hire of Vehicles","190392605","15/11/2017","Fleet Services","Fleet Management","R3200"
"Wolverhampton City Council","http://opendatacommunities.org/id/metropolitan-district-council/wolverhampton","705946","Northgate Vehicle Hire Limited","SL04694831IN","342.32","Hire of Vehicles","190392592","15/11/2017","Fleet Services","Fleet Management","R3200"
"Wolverhampton City Council","http://opendatacommunities.org/id/metropolitan-district-council/wolverhampton","705946","Northgate Vehicle Hire Limited","SL04694846IN","117.81","Hire of Vehicles","190392606","15/11/2017","Fleet Services","Fleet Management","R3200"
"Wolverhampton City Council","http://opendatacommunities.org/id/metropolitan-district-council/wolverhampton","705946","Northgate Vehicle Hire Limited","SL04694834IN","342.32","Hire of Vehicles","190392595","15/11/2017","Fleet Services","Fleet Management","R3200"
"Wolverhampton City Council","http://opendatacommunities.org/id/metropolitan-district-council/wolverhampton","705946","Northgate Vehicle Hire Limited","SL04694835IN","318.56","Hire of Vehicles","190392596","15/11/2017","Fleet Services","Fleet Management","R3200"
"Wolverhampton City Council","http://opendatacommunities.org/id/metropolitan-district-council/wolverhampton","705946","Northgate Vehicle Hire Limited","SL04677052IN","248.96","Hire of Vehicles","190392562","15/11/2017","Fleet Services","Fleet Management","R3200"
"Wolverhampton City Council","http://opendatacommunities.org/id/metropolitan-district-council/wolverhampton","705946","Northgate Vehicle Hire Limited","SL04694800IN","318.56","Hire of Vehicles","190392563","15/11/2017","Fleet Services","Fleet Management","R3200"
"Wolverhampton City Council","http://opendatacommunities.org/id/metropolitan-district-council/wolverhampton","705946","Northgate Vehicle Hire Limited","SL04694806IN","318.56","Hire of Vehicles","190392569","15/11/2017","Fleet Services","Fleet Management","R3200"
"Wolverhampton City Council","http://opendatacommunities.org/id/metropolitan-district-council/wolverhampton","705946","Northgate Vehicle Hire Limited","SL04694802IN","306.46","Hire of Vehicles","190392565","15/11/2017","Fleet Services","Fleet Management","R3200"
"Wolverhampton City Council","http://opendatacommunities.org/id/metropolitan-district-council/wolverhampton","705946","Northgate Vehicle Hire Limited","SL04694803IN","306.46","Hire of Vehicles","190392566","15/11/2017","Fleet Services","Fleet Management","R3200"
"Wolverhampton City Council","http://opendatacommunities.org/id/metropolitan-district-council/wolverhampton","705946","Northgate Vehicle Hire Limited","SL04694804IN","317.46","Hire of Vehicles","190392567","15/11/2017","Fleet Services","Fleet Management","R3200"
"Wolverhampton City Council","http://opendatacommunities.org/id/metropolitan-district-council/wolverhampton","705946","Northgate Vehicle Hire Limited","SL04694805IN","306.46","Hire of Vehicles","190392568","15/11/2017","Fleet Services","Fleet Management","R3200"
"Wolverhampton City Council","http://opendatacommunities.org/id/metropolitan-district-council/wolverhampton","705946","Northgate Vehicle Hire Limited","SL04694843IN","317.46","Hire of Vehicles","190392603","15/11/2017","Fleet Services","Fleet Management","R3200"
"Wolverhampton City Council","http://opendatacommunities.org/id/metropolitan-district-council/wolverhampton","705946","Northgate Vehicle Hire Limited","HI2263463","68.25","Hire of Vehicles","190392552","15/11/2017","Fleet Services","Fleet Management","R3200"
"Wolverhampton City Council","http://opendatacommunities.org/id/metropolitan-district-council/wolverhampton","705946","Northgate Vehicle Hire Limited","SL04694807IN","306.46","Hire of Vehicles","190392570","15/11/2017","Fleet Services","Fleet Management","R3200"
"Wolverhampton City Council","http://opendatacommunities.org/id/metropolitan-district-council/wolverhampton","705946","Northgate Vehicle Hire Limited","SL04694808IN","306.46","Hire of Vehicles","190392571","15/11/2017","Fleet Services","Fleet Management","R3200"
"Wolverhampton City Council","http://opendatacommunities.org/id/metropolitan-district-council/wolverhampton","705946","Northgate Vehicle Hire Limited","SL04694810IN","306.46","Hire of Vehicles","190392572","15/11/2017","Fleet Services","Fleet Management","R3200"
"Wolverhampton City Council","http://opendatacommunities.org/id/metropolitan-district-council/wolverhampton","705946","Northgate Vehicle Hire Limited","SL04652559IN","58.26","Hire of Vehicles","190392561","15/11/2017","Fleet Services","Fleet Management","R3200"
"Wolverhampton City Council","http://opendatacommunities.org/id/metropolitan-district-council/wolverhampton","705946","Northgate Vehicle Hire Limited","SL04694840IN","190.52","Hire of Vehicles","190392600","15/11/2017","Fleet Services","Fleet Management","R3200"
"Wolverhampton City Council","http://opendatacommunities.org/id/metropolitan-district-council/wolverhampton","705946","Northgate Vehicle Hire Limited","SL04694841IN","190.52","Hire of Vehicles","190392601","15/11/2017","Fleet Services","Fleet Management","R3200"
"Wolverhampton City Council","http://opendatacommunities.org/id/metropolitan-district-council/wolverhampton","705946","Northgate Vehicle Hire Limited","SL04694842IN","190.52","Hire of Vehicles","190392602","15/11/2017","Fleet Services","Fleet Management","R3200"
"Wolverhampton City Council","http://opendatacommunities.org/id/metropolitan-district-council/wolverhampton","705946","Northgate Vehicle Hire Limited","SL04694832IN","306.46","Hire of Vehicles","190392593","15/11/2017","Fleet Services","Fleet Management","R3200"
"Wolverhampton City Council","http://opendatacommunities.org/id/metropolitan-district-council/wolverhampton","705946","Northgate Vehicle Hire Limited","SL04694833IN","306.46","Hire of Vehicles","190392594","15/11/2017","Fleet Services","Fleet Management","R3200"
"Wolverhampton City Council","http://opendatacommunities.org/id/metropolitan-district-council/wolverhampton","705946","Northgate Vehicle Hire Limited","SL04694844IN","122.40","Hire of Vehicles","190392604","15/11/2017","Fleet Services","Fleet Management","R3200"
"Wolverhampton City Council","http://opendatacommunities.org/id/metropolitan-district-council/wolverhampton","705946","Northgate Vehicle Hire Limited","SL04694837IN","306.46","Hire of Vehicles","190392597","15/11/2017","Fleet Services","Fleet Management","R3200"
"Wolverhampton City Council","http://opendatacommunities.org/id/metropolitan-district-council/wolverhampton","705946","Northgate Vehicle Hire Limited","SL04694839IN","306.46","Hire of Vehicles","190392599","15/11/2017","Fleet Services","Fleet Management","R3200"
"Wolverhampton City Council","http://opendatacommunities.org/id/metropolitan-district-council/wolverhampton","705946","Northgate Vehicle Hire Limited","NTGSL0057411","48.55","Hire of Vehicles","190392558","15/11/2017","Fleet Services","Fleet Management","R3200"
"Wolverhampton City Council","http://opendatacommunities.org/id/metropolitan-district-council/wolverhampton","705946","Northgate Vehicle Hire Limited","SL00170090CR","-15.56","Hire of Vehicles","190392560","15/11/2017","Fleet Services","Fleet Management","R3200"
"Wolverhampton City Council","http://opendatacommunities.org/id/metropolitan-district-council/wolverhampton","705954","Nottingham Rehab Supplies/Nrs Limited","97458450","104.11","Equipment - Purchase","130192933","10/11/2017","Catering","Education Catering - General Overheads","R4000"
"Wolverhampton City Council","http://opendatacommunities.org/id/metropolitan-district-council/wolverhampton","705954","Nottingham Rehab Supplies/Nrs Limited","1800100249","2,051.94","Equipment - R & M","130191769","22/11/2017","Independent Living Service","Independent Living Service","R4003"
"Wolverhampton City Council","http://opendatacommunities.org/id/metropolitan-district-council/wolverhampton","705957","Nova Training Limited","5098","2,258.29","TPP - Alternative Provision of Education","130196099","22/11/2017","Standards and Vulnerable Pupils","Post 16 SEN Provision","R5037"
"Wolverhampton City Council","http://opendatacommunities.org/id/metropolitan-district-council/wolverhampton","705957","Nova Training Limited","5087","1,059.15","Training Expenses","130193862","03/11/2017","Skills","IMPACT","R1650"
"Wolverhampton City Council","http://opendatacommunities.org/id/metropolitan-district-council/wolverhampton","705964","NPOWER","NP0268-79872600700","38.10","Electricity","190391469","10/11/2017","Housing Revenue Account","Hostels / Outreach","R2100"
"Wolverhampton City Council","http://opendatacommunities.org/id/metropolitan-district-council/wolverhampton","705966","NPOWER Limited-Mba Accounts Receivable","LGU5XKR","150.25","Electricity","190389552","03/11/2017","Corporate Asset Management","Central Utilities to Recharge","R2100"
"Wolverhampton City Council","http://opendatacommunities.org/id/metropolitan-district-council/wolverhampton","705966","NPOWER Limited-Mba Accounts Receivable","LGU5FXKP","241.83","Electricity","190389554","03/11/2017","Corporate Asset Management","Central Utilities to Recharge","R2100"
"Wolverhampton City Council","http://opendatacommunities.org/id/metropolitan-district-council/wolverhampton","705966","NPOWER Limited-Mba Accounts Receivable","LGU5L6BR","6.90","Electricity","190389556","03/11/2017","Corporate Asset Management","Central Utilities to Recharge","R2100"
"Wolverhampton City Council","http://opendatacommunities.org/id/metropolitan-district-council/wolverhampton","705966","NPOWER Limited-Mba Accounts Receivable","LGU5FXKN","74.67","Electricity","190389555","03/11/2017","Corporate Asset Management","Central Utilities to Recharge","R2100"
"Wolverhampton City Council","http://opendatacommunities.org/id/metropolitan-district-council/wolverhampton","705966","NPOWER Limited-Mba Accounts Receivable","LGU5FXKQ","217.15","Electricity","190389553","03/11/2017","Corporate Asset Management","Central Utilities to Recharge","R2100"
"Wolverhampton City Council","http://opendatacommunities.org/id/metropolitan-district-council/wolverhampton","705966","NPOWER Limited-Mba Accounts Receivable","LGU5FXKT","121.95","Electricity","190389550","03/11/2017","Corporate Asset Management","Central Utilities to Recharge","R2100"
"Wolverhampton City Council","http://opendatacommunities.org/id/metropolitan-district-council/wolverhampton","705966","NPOWER Limited-Mba Accounts Receivable","LGU5FXKS","129.39","Electricity","190389551","03/11/2017","Corporate Asset Management","Central Utilities to Recharge","R2100"
"Wolverhampton City Council","http://opendatacommunities.org/id/metropolitan-district-council/wolverhampton","705966","NPOWER Limited-Mba Accounts Receivable","LGU5QRFQ","341.69","Electricity","190392886","15/11/2017","Corporate Asset Management","Central Utilities to Recharge","R2100"
"Wolverhampton City Council","http://opendatacommunities.org/id/metropolitan-district-council/wolverhampton","705966","NPOWER Limited-Mba Accounts Receivable","LGU5QY5Y","146.88","Electricity","190392887","15/11/2017","Corporate Asset Management","Central Utilities to Recharge","R2100"
"Wolverhampton City Council","http://opendatacommunities.org/id/metropolitan-district-council/wolverhampton","705978","Nuco Training Limited","INV142027","38.50","Exam Expenses (Non-Employee)","130194355","29/11/2017","Adult Education","Work Related Studies","R4630"
"Wolverhampton City Council","http://opendatacommunities.org/id/metropolitan-district-council/wolverhampton","705978","Nuco Training Limited","INV142027","22.00","Exam Expenses (Non-Employee)","130194355","29/11/2017","Adult Education","Discretionary Fund","R4630"
"Wolverhampton City Council","http://opendatacommunities.org/id/metropolitan-district-council/wolverhampton","705978","Nuco Training Limited","INV142027","5.50","Exam Expenses (Non-Employee)","130194355","29/11/2017","Adult Education","Staff Development","R4630"
"Wolverhampton City Council","http://opendatacommunities.org/id/metropolitan-district-council/wolverhampton","705978","Nuco Training Limited","INV142027","5.50","Exam Expenses (Non-Employee)","130194355","29/11/2017","Adult Education","Bursary Fund","R4630"
"Wolverhampton City Council","http://opendatacommunities.org/id/metropolitan-district-council/wolverhampton","705978","Nuco Training Limited","INV141040","277.50","Training Expenses","130192935","15/11/2017","Adult Education","Direct Delivery Team ( L.& D.)","R1650"
"Wolverhampton City Council","http://opendatacommunities.org/id/metropolitan-district-council/wolverhampton","705978","Nuco Training Limited","INV141040","277.50","Training Expenses","130192935","15/11/2017","Adult Education","Direct Delivery Team ( L.& D.)","R1650"
"Wolverhampton City Council","http://opendatacommunities.org/id/metropolitan-district-council/wolverhampton","705978","Nuco Training Limited","INV141040","-277.50","Training Expenses","130192935","15/11/2017","Adult Education","Direct Delivery Team ( L.& D.)","R1650"
"Wolverhampton City Council","http://opendatacommunities.org/id/metropolitan-district-council/wolverhampton","705978","Nuco Training Limited","INV135480","16.00","Exam Expenses (Non-Employee)","130179207","01/11/2017","Adult Education","Discretionary Fund","R4630"
"Wolverhampton City Council","http://opendatacommunities.org/id/metropolitan-district-council/wolverhampton","705978","Nuco Training Limited","INV135480","4.00","Exam Expenses (Non-Employee)","130179207","01/11/2017","Adult Education","Staff Development","R4630"
"Wolverhampton City Council","http://opendatacommunities.org/id/metropolitan-district-council/wolverhampton","705978","Nuco Training Limited","INV135480","28.00","Exam Expenses (Non-Employee)","130179207","01/11/2017","Adult Education","Work Related Studies","R4630"
"Wolverhampton City Council","http://opendatacommunities.org/id/metropolitan-district-council/wolverhampton","705978","Nuco Training Limited","INV140120","17.50","Exam Expenses (Non-Employee)","130192934","01/11/2017","Adult Education","Work Related Studies","R4630"
"Wolverhampton City Council","http://opendatacommunities.org/id/metropolitan-district-council/wolverhampton","705978","Nuco Training Limited","INV140120","10.00","Exam Expenses (Non-Employee)","130192934","01/11/2017","Adult Education","Discretionary Fund","R4630"
"Wolverhampton City Council","http://opendatacommunities.org/id/metropolitan-district-council/wolverhampton","705978","Nuco Training Limited","INV140120","2.50","Exam Expenses (Non-Employee)","130192934","01/11/2017","Adult Education","Staff Development","R4630"
"Wolverhampton City Council","http://opendatacommunities.org/id/metropolitan-district-council/wolverhampton","705978","Nuco Training Limited","INV140120","2.50","Exam Expenses (Non-Employee)","130192934","01/11/2017","Adult Education","Bursary Fund","R4630"
"Wolverhampton City Council","http://opendatacommunities.org/id/metropolitan-district-council/wolverhampton","705978","Nuco Training Limited","INV135480","4.00","Exam Expenses (Non-Employee)","130179207","01/11/2017","Adult Education","Bursary Fund","R4630"
"Wolverhampton City Council","http://opendatacommunities.org/id/metropolitan-district-council/wolverhampton","705978","Nuco Training Limited","INV135583","17.50","Exam Expenses (Non-Employee)","130179352","01/11/2017","Adult Education","Work Related Studies","R4630"
"Wolverhampton City Council","http://opendatacommunities.org/id/metropolitan-district-council/wolverhampton","705978","Nuco Training Limited","INV135583","10.00","Exam Expenses (Non-Employee)","130179352","01/11/2017","Adult Education","Discretionary Fund","R4630"
"Wolverhampton City Council","http://opendatacommunities.org/id/metropolitan-district-council/wolverhampton","705978","Nuco Training Limited","INV135583","2.50","Exam Expenses (Non-Employee)","130179352","01/11/2017","Adult Education","Staff Development","R4630"
"Wolverhampton City Council","http://opendatacommunities.org/id/metropolitan-district-council/wolverhampton","705978","Nuco Training Limited","INV135583","2.50","Exam Expenses (Non-Employee)","130179352","01/11/2017","Adult Education","Bursary Fund","R4630"
"Wolverhampton City Council","http://opendatacommunities.org/id/metropolitan-district-council/wolverhampton","705982","Nunnery Wood High School","P15767620171103","600.00","Grant Payments to Individuals","190390248","08/11/2017","Looked After Children","LAC Education Team (LACE)","R6402"
"Wolverhampton City Council","http://opendatacommunities.org/id/metropolitan-district-council/wolverhampton","705982","Nunnery Wood High School","P15767620171103","600.00","Grant Payments to Individuals","190390248","08/11/2017","Looked After Children","LAC Education Team (LACE)","R6402"
"Wolverhampton City Council","http://opendatacommunities.org/id/metropolitan-district-council/wolverhampton","705995","Oakley�S Limited","168488","344.61","Equipment - Purchase","190391080","08/11/2017","Fleet Services","Fleet Management","R4000"
"Wolverhampton City Council","http://opendatacommunities.org/id/metropolitan-district-council/wolverhampton","705995","Oakley�S Limited","168489","63.27","Equipment - Purchase","190391081","08/11/2017","Fleet Services","Fleet Management","R4000"
"Wolverhampton City Council","http://opendatacommunities.org/id/metropolitan-district-council/wolverhampton","705995","Oakley�S Limited","168909","0.43","Equipment - Purchase","190388910","01/11/2017","Fleet Services","Fleet Management","R4000"
"Wolverhampton City Council","http://opendatacommunities.org/id/metropolitan-district-council/wolverhampton","705995","Oakley�S Limited","168909","11.23","Equipment - Purchase","190388910","01/11/2017","Fleet Services","Fleet Management","R4000"
"Wolverhampton City Council","http://opendatacommunities.org/id/metropolitan-district-council/wolverhampton","705995","Oakley�S Limited","168909","3.74","Equipment - Purchase","190388910","01/11/2017","Fleet Services","Fleet Management","R4000"
"Wolverhampton City Council","http://opendatacommunities.org/id/metropolitan-district-council/wolverhampton","705995","Oakley�S Limited","168909","83.70","Equipment - Purchase","190388910","01/11/2017","Fleet Services","Fleet Management","R4000"
"Wolverhampton City Council","http://opendatacommunities.org/id/metropolitan-district-council/wolverhampton","705995","Oakley�S Limited","168915","35.65","Equipment - Purchase","190388911","01/11/2017","Fleet Services","Fleet Management","R4000"
"Wolverhampton City Council","http://opendatacommunities.org/id/metropolitan-district-council/wolverhampton","705995","Oakley�S Limited","168931","69.47","Equipment - Purchase","190388912","01/11/2017","Fleet Services","Fleet Management","R4000"
"Wolverhampton City Council","http://opendatacommunities.org/id/metropolitan-district-council/wolverhampton","705995","Oakley�S Limited","168931","11.98","Equipment - Purchase","190388912","01/11/2017","Fleet Services","Fleet Management","R4000"
"Wolverhampton City Council","http://opendatacommunities.org/id/metropolitan-district-council/wolverhampton","705995","Oakley�S Limited","168883","150.39","Equipment - Purchase","190388909","01/11/2017","Fleet Services","Fleet Management","R4000"
"Wolverhampton City Council","http://opendatacommunities.org/id/metropolitan-district-council/wolverhampton","705995","Oakley�S Limited","169167","163.21","Equipment - Purchase","190393172","15/11/2017","Fleet Services","Fleet Management","R4000"
"Wolverhampton City Council","http://opendatacommunities.org/id/metropolitan-district-council/wolverhampton","705995","Oakley�S Limited","169167","23.02","Equipment - Purchase","190393172","15/11/2017","Fleet Services","Fleet Management","R4000"
"Wolverhampton City Council","http://opendatacommunities.org/id/metropolitan-district-council/wolverhampton","705995","Oakley�S Limited","169167","37.76","Equipment - Purchase","190393172","15/11/2017","Fleet Services","Fleet Management","R4000"
"Wolverhampton City Council","http://opendatacommunities.org/id/metropolitan-district-council/wolverhampton","705995","Oakley�S Limited","169125","1.28","Equipment - Purchase","190393171","15/11/2017","Fleet Services","Fleet Management","R4000"
"Wolverhampton City Council","http://opendatacommunities.org/id/metropolitan-district-council/wolverhampton","705995","Oakley�S Limited","169125","70.76","Equipment - Purchase","190393171","15/11/2017","Fleet Services","Fleet Management","R4000"
"Wolverhampton City Council","http://opendatacommunities.org/id/metropolitan-district-council/wolverhampton","705995","Oakley�S Limited","169122","3.03","Equipment - Purchase","190390205","08/11/2017","Fleet Services","Fleet Management","R4000"
"Wolverhampton City Council","http://opendatacommunities.org/id/metropolitan-district-council/wolverhampton","705995","Oakley�S Limited","169171","302.39","Equipment - Purchase","190390206","08/11/2017","Fleet Services","Fleet Management","R4000"
"Wolverhampton City Council","http://opendatacommunities.org/id/metropolitan-district-council/wolverhampton","705995","Oakley�S Limited","169428","39.61","Equipment - Purchase","190395091","22/11/2017","Fleet Services","Fleet Management","R4000"
"Wolverhampton City Council","http://opendatacommunities.org/id/metropolitan-district-council/wolverhampton","705995","Oakley�S Limited","169412","2.65","Equipment - Purchase","190395090","22/11/2017","Fleet Services","Fleet Management","R4000"
"Wolverhampton City Council","http://opendatacommunities.org/id/metropolitan-district-council/wolverhampton","706007","OCR (Cambridge)","100946990","20.06","Exam Expenses (Non-Employee)","130195713","17/11/2017","Adult Education","Work Related Studies","R4630"
"Wolverhampton City Council","http://opendatacommunities.org/id/metropolitan-district-council/wolverhampton","706007","OCR (Cambridge)","100946990","20.90","Exam Expenses (Non-Employee)","130195713","17/11/2017","Adult Education","Discretionary Fund","R4630"
"Wolverhampton City Council","http://opendatacommunities.org/id/metropolitan-district-council/wolverhampton","706007","OCR (Cambridge)","100946990","1.67","Exam Expenses (Non-Employee)","130195713","17/11/2017","Adult Education","Staff Development","R4630"
"Wolverhampton City Council","http://opendatacommunities.org/id/metropolitan-district-council/wolverhampton","706007","OCR (Cambridge)","100946990","1.67","Exam Expenses (Non-Employee)","130195713","17/11/2017","Adult Education","Bursary Fund","R4630"
"Wolverhampton City Council","http://opendatacommunities.org/id/metropolitan-district-council/wolverhampton","706007","OCR (Cambridge)","100935886","38.94","Exam Expenses (Non-Employee)","130195712","17/11/2017","Adult Education","Work Related Studies","R4630"
"Wolverhampton City Council","http://opendatacommunities.org/id/metropolitan-district-council/wolverhampton","706007","OCR (Cambridge)","100935886","40.57","Exam Expenses (Non-Employee)","130195712","17/11/2017","Adult Education","Discretionary Fund","R4630"
"Wolverhampton City Council","http://opendatacommunities.org/id/metropolitan-district-council/wolverhampton","706007","OCR (Cambridge)","100935886","3.24","Exam Expenses (Non-Employee)","130195712","17/11/2017","Adult Education","Staff Development","R4630"
"Wolverhampton City Council","http://opendatacommunities.org/id/metropolitan-district-council/wolverhampton","706007","OCR (Cambridge)","100935886","3.24","Exam Expenses (Non-Employee)","130195712","17/11/2017","Adult Education","Bursary Fund","R4630"
"Wolverhampton City Council","http://opendatacommunities.org/id/metropolitan-district-council/wolverhampton","706007","OCR (Cambridge)","100922848","76.20","Exam Expenses (Non-Employee)","130195711","17/11/2017","Adult Education","Discretionary Fund","R4630"
"Wolverhampton City Council","http://opendatacommunities.org/id/metropolitan-district-council/wolverhampton","706007","OCR (Cambridge)","100948082","36.00","Exam Expenses (Non-Employee)","130195714","22/11/2017","Adult Education","Work Related Studies","R4630"
"Wolverhampton City Council","http://opendatacommunities.org/id/metropolitan-district-council/wolverhampton","706007","OCR (Cambridge)","100952928","604.10","Exam Expenses (Non-Employee)","130195715","22/11/2017","Adult Education","Discretionary Fund","R4630"
"Wolverhampton City Council","http://opendatacommunities.org/id/metropolitan-district-council/wolverhampton","706007","OCR (Cambridge)","100953217","612.00","Exam Expenses (Non-Employee)","130195716","22/11/2017","Adult Education","Work Related Studies","R4630"
"Wolverhampton City Council","http://opendatacommunities.org/id/metropolitan-district-council/wolverhampton","706012","Offa�S Press","141017","28.62","Books","130195717","17/11/2017","Strategic Organisation Development","Global Budgets","R4309"
"Wolverhampton City Council","http://opendatacommunities.org/id/metropolitan-district-council/wolverhampton","706012","Offa�S Press","131017","150.00","Marketing \ Non-staff advertising","130193714","15/11/2017","Strategic Organisation Development","Global Budgets","R4317"
"Wolverhampton City Council","http://opendatacommunities.org/id/metropolitan-district-council/wolverhampton","706028","Ofsted","SC378153","2,770.00","Services - Professional Fees","130193947","01/11/2017","Specialist Support","Upper Pendeford Farm Short Breaks Centre","R4400"
"Wolverhampton City Council","http://opendatacommunities.org/id/metropolitan-district-council/wolverhampton","706028","Ofsted","SC378153","-2,770.00","Services - Professional Fees","130193947","01/11/2017","Specialist Support","Upper Pendeford Farm Short Breaks Centre","R4400"
"Wolverhampton City Council","http://opendatacommunities.org/id/metropolitan-district-council/wolverhampton","706028","Ofsted","SC378153","2,770.00","Services - Professional Fees","130193947","01/11/2017","Specialist Support","Upper Pendeford Farm Short Breaks Centre","R4400"
"Wolverhampton City Council","http://opendatacommunities.org/id/metropolitan-district-council/wolverhampton","706033","OLM Systems Limited","2160086","450.00","Computing - Maint Agreements","130194287","08/11/2017","ICTS","Strategic ICTS (ICT Service Budget)","R4534"
"Wolverhampton City Council","http://opendatacommunities.org/id/metropolitan-district-council/wolverhampton","706045","One Voice","WAS 1718/02","9,680.80","TPP - Social Care Support Services","130195718","22/11/2017","Head of Commissioning","Wolvo Independant Advocacy Service","R5501"
"Wolverhampton City Council","http://opendatacommunities.org/id/metropolitan-district-council/wolverhampton","706051","OOSHA Limited","507816","119.98","Comms - Telephone Rental","130194658","29/11/2017","Visitor Economy","Box Office Administration","R4504"
"Wolverhampton City Council","http://opendatacommunities.org/id/metropolitan-district-council/wolverhampton","706068","EE Limited","300410570","1,098.00","Comms - Mobile Telephones","130192306","29/11/2017","ICTS","Strategic ICTS (ICT Service Budget)","R4507"
"Wolverhampton City Council","http://opendatacommunities.org/id/metropolitan-district-council/wolverhampton","706068","EE Limited","126137565","-16,650.00","Comms - Mobile Telephones","130193419","29/11/2017","ICTS","Strategic ICTS (ICT Service Budget)","R4507"
"Wolverhampton City Council","http://opendatacommunities.org/id/metropolitan-district-council/wolverhampton","706068","EE Limited","126119381","-47,150.00","Comms - Mobile Telephones","130193421","29/11/2017","ICTS","Strategic ICTS (ICT Service Budget)","R4507"
"Wolverhampton City Council","http://opendatacommunities.org/id/metropolitan-district-council/wolverhampton","706068","EE Limited","126101950","-2,100.00","Comms - Mobile Telephones","130193420","29/11/2017","ICTS","Strategic ICTS (ICT Service Budget)","R4507"
"Wolverhampton City Council","http://opendatacommunities.org/id/metropolitan-district-council/wolverhampton","706068","EE Limited","300406066","64,518.00","Comms - Mobile Telephones","130184172","29/11/2017","ICTS","Strategic ICTS (ICT Service Budget)","R4507"
"Wolverhampton City Council","http://opendatacommunities.org/id/metropolitan-district-council/wolverhampton","706068","EE Limited","300408070","672.00","Comms - Mobile Telephones","130187851","29/11/2017","ICTS","Strategic ICTS (ICT Service Budget)","R4507"
"Wolverhampton City Council","http://opendatacommunities.org/id/metropolitan-district-council/wolverhampton","706068","EE Limited","01266227264","7,971.91","Comms - Mobile Telephones","130194966","29/11/2017","ICTS","Strategic ICTS (ICT Service Budget)","R4507"
"Wolverhampton City Council","http://opendatacommunities.org/id/metropolitan-district-council/wolverhampton","706068","EE Limited","01266227264","-7,971.91","Comms - Mobile Telephones","130194966","29/11/2017","ICTS","Strategic ICTS (ICT Service Budget)","R4507"
"Wolverhampton City Council","http://opendatacommunities.org/id/metropolitan-district-council/wolverhampton","706068","EE Limited","01266227264","7,136.23","Comms - Mobile Telephones","130194966","29/11/2017","ICTS","Strategic ICTS (ICT Service Budget)","R4507"
"Wolverhampton City Council","http://opendatacommunities.org/id/metropolitan-district-council/wolverhampton","706068","EE Limited","01266227264","52.55","Comms - Mobile Telephones","130194966","29/11/2017","ICTS","Strategic ICTS (ICT Service Budget)","R4507"
"Wolverhampton City Council","http://opendatacommunities.org/id/metropolitan-district-council/wolverhampton","706079","Orchid Cellmark Limited","SRVINV128522","499.00","Services - Professional Fees","130195182","15/11/2017","Child Protection","CIN/CP Social Work Unit - Area 2","R4400"
"Wolverhampton City Council","http://opendatacommunities.org/id/metropolitan-district-council/wolverhampton","706108","Oxford Products","787765","19.30","TPP - Maintenance Contractor - General","130194356","29/11/2017","Transportation","Cycling Schemes - Bikeability","R5720"
"Wolverhampton City Council","http://opendatacommunities.org/id/metropolitan-district-council/wolverhampton","706111","Oxford University Press","162653661","150.00","Services - Professional Fees","130196013","17/11/2017","Schools","St Luke�s Church of England Aided Primary School","R4400"
"Wolverhampton City Council","http://opendatacommunities.org/id/metropolitan-district-council/wolverhampton","706116","Oxley Stationers & Printers","36620","181.60","Equipment - Purchase","130191562","01/11/2017","Headstart","Headstart - Young People Engagement","R4000"
"Wolverhampton City Council","http://opendatacommunities.org/id/metropolitan-district-council/wolverhampton","706147","P Wilcox","PW17 - 33","4,935.00","Services - Professional Fees","130191563","01/11/2017","Standards and Vulnerable Pupils","Music Support Team","R4400"
"Wolverhampton City Council","http://opendatacommunities.org/id/metropolitan-district-council/wolverhampton","706154","P.F.Cusack (Tool Supplies) Limited","0000841605","424.05","Materials","130192307","08/11/2017","Highways Maintenance","Patching","R4007"
"Wolverhampton City Council","http://opendatacommunities.org/id/metropolitan-district-council/wolverhampton","706154","P.F.Cusack (Tool Supplies) Limited","0000843295","21.68","Materials","130193102","15/11/2017","Highways Maintenance","Patching","R4007"
"Wolverhampton City Council","http://opendatacommunities.org/id/metropolitan-district-council/wolverhampton","706198","Parkeon Limited","UK102141","10.00","Equipment - R & M","130194206","29/11/2017","Parking Services","St Peter�s Car Park","R4003"
"Wolverhampton City Council","http://opendatacommunities.org/id/metropolitan-district-council/wolverhampton","706198","Parkeon Limited","UK102143","751.10","Equipment - R & M","130194207","29/11/2017","Parking Services","Car Parks Operational Staff","R4003"
"Wolverhampton City Council","http://opendatacommunities.org/id/metropolitan-district-council/wolverhampton","706200","Parkfield Medical Practice","Parkfield Medical Practice July-Sept 2017","385.00","TPP - Public Health Contracts","190389906","03/11/2017","Contracts","Wider determinants","R5060"
"Wolverhampton City Council","http://opendatacommunities.org/id/metropolitan-district-council/wolverhampton","706214","Passenger Lift Services Limited","111057","87.70","Equipment - Purchase","190393153","22/11/2017","Fleet Services","Fleet Management","R4000"
"Wolverhampton City Council","http://opendatacommunities.org/id/metropolitan-district-council/wolverhampton","706214","Passenger Lift Services Limited","111057","20.76","Equipment - Purchase","190393153","22/11/2017","Fleet Services","Fleet Management","R4000"
"Wolverhampton City Council","http://opendatacommunities.org/id/metropolitan-district-council/wolverhampton","706214","Passenger Lift Services Limited","111129","344.74","Equipment - Purchase","190395071","22/11/2017","Fleet Services","Fleet Management","R4000"
"Wolverhampton City Council","http://opendatacommunities.org/id/metropolitan-district-council/wolverhampton","706214","Passenger Lift Services Limited","111129","64.49","Equipment - Purchase","190395071","22/11/2017","Fleet Services","Fleet Management","R4000"
"Wolverhampton City Council","http://opendatacommunities.org/id/metropolitan-district-council/wolverhampton","706214","Passenger Lift Services Limited","111000","45.95","Equipment - Purchase","190395069","22/11/2017","Fleet Services","Fleet Management","R4000"
"Wolverhampton City Council","http://opendatacommunities.org/id/metropolitan-district-council/wolverhampton","706214","Passenger Lift Services Limited","111000","17.48","Equipment - Purchase","190395069","22/11/2017","Fleet Services","Fleet Management","R4000"
"Wolverhampton City Council","http://opendatacommunities.org/id/metropolitan-district-council/wolverhampton","706214","Passenger Lift Services Limited","111000","151.75","Equipment - Purchase","190395069","22/11/2017","Fleet Services","Fleet Management","R4000"
"Wolverhampton City Council","http://opendatacommunities.org/id/metropolitan-district-council/wolverhampton","706214","Passenger Lift Services Limited","111105","810.70","Equipment - Purchase","190395070","22/11/2017","Fleet Services","Fleet Management","R4000"
"Wolverhampton City Council","http://opendatacommunities.org/id/metropolitan-district-council/wolverhampton","706214","Passenger Lift Services Limited","6838","-127.23","Equipment - Purchase","190388928","22/11/2017","Fleet Services","Fleet Management","R4000"
"Wolverhampton City Council","http://opendatacommunities.org/id/metropolitan-district-council/wolverhampton","706240","PDE Waste Technologies Limited","PDE 18180","255.38","Equipment - Purchase","130193103","03/11/2017","Markets","Wolverhampton Indoor and Open Market","R4000"
"Wolverhampton City Council","http://opendatacommunities.org/id/metropolitan-district-council/wolverhampton","706240","PDE Waste Technologies Limited","PDE 18181","1,617.23","Equipment - Purchase","130193104","03/11/2017","Markets","Wolverhampton Indoor and Open Market","R4000"
"Wolverhampton City Council","http://opendatacommunities.org/id/metropolitan-district-council/wolverhampton","706240","PDE Waste Technologies Limited","PDE 18248","325.00","Equipment - Purchase","130193863","03/11/2017","Markets","Bilston Market and Licensed Operations","R4000"
"Wolverhampton City Council","http://opendatacommunities.org/id/metropolitan-district-council/wolverhampton","706240","PDE Waste Technologies Limited","PDE 18303","269.83","Equipment - Purchase","130196773","29/11/2017","Markets","Wolverhampton Indoor and Open Market","R4000"
"Wolverhampton City Council","http://opendatacommunities.org/id/metropolitan-district-council/wolverhampton","706246","Pearson Education Limited","1660236","1,431.75","Services - Professional Fees","130196012","17/11/2017","Schools","St Luke�s Church of England Aided Primary School","R4400"
"Wolverhampton City Council","http://opendatacommunities.org/id/metropolitan-district-council/wolverhampton","706259","Penderels Trust","14732420171120","90.00","Direct payments - Long Term support","190394883","22/11/2017","Child Protection","Childrens with Disabilities Team","R6302"
"Wolverhampton City Council","http://opendatacommunities.org/id/metropolitan-district-council/wolverhampton","706259","Penderels Trust","147326-20171120","90.00","Direct payments - Long Term support","190394884","22/11/2017","Older People Care Purchasing","OP Care Purchasing (Spot Placements)","R6302"
"Wolverhampton City Council","http://opendatacommunities.org/id/metropolitan-district-council/wolverhampton","706259","Penderels Trust","14732720171120","90.00","Direct payments - Long Term support","190394885","22/11/2017","Older People Care Purchasing","OP Care Purchasing (Spot Placements)","R6302"
"Wolverhampton City Council","http://opendatacommunities.org/id/metropolitan-district-council/wolverhampton","706259","Penderels Trust","140443-20171106","220.00","Direct payments - Long Term support","190390399","08/11/2017","Older People Care Purchasing","OP Care Purchasing (Spot Placements)","R6302"
"Wolverhampton City Council","http://opendatacommunities.org/id/metropolitan-district-council/wolverhampton","706259","Penderels Trust","0000147425","2,500.00","Direct payments - Long Term support","130192766","15/11/2017","Head of Commissioning","Commissioning Disabilities","R6302"
"Wolverhampton City Council","http://opendatacommunities.org/id/metropolitan-district-council/wolverhampton","706259","Penderels Trust","14032320171120","90.00","Direct payments - Long Term support","190394882","22/11/2017","Older People Care Purchasing","OP Care Purchasing (Spot Placements)","R6302"
"Wolverhampton City Council","http://opendatacommunities.org/id/metropolitan-district-council/wolverhampton","706259","Penderels Trust","147334-20171120","180.00","Direct payments - Long Term support","190394888","22/11/2017","Learning Disabilities Care Purchasing","LD Care Purchasing (Spot Placements)","R6302"
"Wolverhampton City Council","http://opendatacommunities.org/id/metropolitan-district-council/wolverhampton","706259","Penderels Trust","14734020171120","180.00","Direct payments - Long Term support","190394889","22/11/2017","Older People Care Purchasing","OP Care Purchasing (Spot Placements)","R6302"
"Wolverhampton City Council","http://opendatacommunities.org/id/metropolitan-district-council/wolverhampton","706259","Penderels Trust","14733020171120","90.00","Direct payments - Long Term support","190394887","22/11/2017","Learning Disabilities Care Purchasing","LD Care Purchasing (Spot Placements)","R6302"
"Wolverhampton City Council","http://opendatacommunities.org/id/metropolitan-district-council/wolverhampton","706259","Penderels Trust","14732820171120","90.00","Direct payments - Long Term support","190394886","22/11/2017","Older People Care Purchasing","OP Care Purchasing (Spot Placements)","R6302"
"Wolverhampton City Council","http://opendatacommunities.org/id/metropolitan-district-council/wolverhampton","706299","Penn Manor Medical Centre","FOS4005","73.86","Services - Professional Fees","190392961","15/11/2017","Looked After Children","Fostering Team & Allowances","R4400"
"Wolverhampton City Council","http://opendatacommunities.org/id/metropolitan-district-council/wolverhampton","706299","Penn Manor Medical Centre","FOS4006","73.86","Services - Professional Fees","190392962","15/11/2017","Looked After Children","Fostering Team & Allowances","R4400"
"Wolverhampton City Council","http://opendatacommunities.org/id/metropolitan-district-council/wolverhampton","706300","Penn News Limited","PNNEWS 042","46.50","Books","130195721","22/11/2017","Strategic Organisation Development","Penn Library","R4309"
"Wolverhampton City Council","http://opendatacommunities.org/id/metropolitan-district-council/wolverhampton","706301","Penna PLC","558730","5,945.00","Services - Consultants","130194660","29/11/2017","Service Director Public Health & Wellbeing","Service Director Public Health & Wellbeing","R4404"
"Wolverhampton City Council","http://opendatacommunities.org/id/metropolitan-district-council/wolverhampton","706301","Penna PLC","556625","19,024.00","Services - Consultants","130191053","01/11/2017","Service Director Public Health & Wellbeing","Service Director Public Health & Wellbeing","R4404"
"Wolverhampton City Council","http://opendatacommunities.org/id/metropolitan-district-council/wolverhampton","706302","Pennwood Electrical Services Limited","005624","2,752.00","R&M - Departmental response (Internal)","130195558","15/11/2017","Visitor Economy","Civic Halls Non-Direct Event Management Account","R2002"
"Wolverhampton City Council","http://opendatacommunities.org/id/metropolitan-district-council/wolverhampton","706302","Pennwood Electrical Services Limited","005624","380.00","R&M - Departmental response (Internal)","130195558","15/11/2017","Visitor Economy","The Little Civic","R2002"
"Wolverhampton City Council","http://opendatacommunities.org/id/metropolitan-district-council/wolverhampton","706302","Pennwood Electrical Services Limited","005624","420.00","R&M - Departmental response (Internal)","130195558","15/11/2017","Visitor Economy","Northicote Farm","R2002"
"Wolverhampton City Council","http://opendatacommunities.org/id/metropolitan-district-council/wolverhampton","706302","Pennwood Electrical Services Limited","005666","451.00","Services - Professional Fees","130194357","08/11/2017","Visitor Economy","Outdoor Events Admin","R4400"
"Wolverhampton City Council","http://opendatacommunities.org/id/metropolitan-district-council/wolverhampton","706302","Pennwood Electrical Services Limited","005667","250.00","Services - Professional Fees","130194358","08/11/2017","Visitor Economy","Diwali","R4400"
"Wolverhampton City Council","http://opendatacommunities.org/id/metropolitan-district-council/wolverhampton","706314","Performing Right Society Limited","5214669","279.02","Services - Fees and Charges","130196275","22/11/2017","Visitor Economy","Northicote Farm","R4401"
"Wolverhampton City Council","http://opendatacommunities.org/id/metropolitan-district-council/wolverhampton","706314","Performing Right Society Limited","5139258 - Bacs rejection","1,533.30","Services - General Licences","130197027","29/11/2017","Markets","Wolverhampton Indoor and Open Market","R4402"
"Wolverhampton City Council","http://opendatacommunities.org/id/metropolitan-district-council/wolverhampton","706315","Permanent Futures Limited","220541","2,875.00","Agency Staff","130192937","08/11/2017","Service Director Children & Young People","Children & Young People Support Costs","R1100"
"Wolverhampton City Council","http://opendatacommunities.org/id/metropolitan-district-council/wolverhampton","706328","Peter Littleford Limited","12 ( VB )","278.00","Direct Work With Children","130191199","01/11/2017","Looked After Children","Adoption Support Fund","R6310"
"Wolverhampton City Council","http://opendatacommunities.org/id/metropolitan-district-council/wolverhampton","706328","Peter Littleford Limited","49{KL )","532.25","Services - Professional Fees","130191200","01/11/2017","Looked After Children","Adoption and Residence Team & Allowances","R4400"
"Wolverhampton City Council","http://opendatacommunities.org/id/metropolitan-district-council/wolverhampton","706328","Peter Littleford Limited","50 ( KL )","574.00","Services - Professional Fees","130194661","29/11/2017","Looked After Children","Adoption and Residence Team & Allowances","R4400"
"Wolverhampton City Council","http://opendatacommunities.org/id/metropolitan-district-council/wolverhampton","706332","Peters Limited","1664824","50.16","Books","130192595","01/11/2017","Strategic Organisation Development","Global Budgets","R4309"
"Wolverhampton City Council","http://opendatacommunities.org/id/metropolitan-district-council/wolverhampton","706332","Peters Limited","1657576","66.10","Books","130192767","01/11/2017","Strategic Organisation Development","Global Budgets","R4309"
"Wolverhampton City Council","http://opendatacommunities.org/id/metropolitan-district-council/wolverhampton","706332","Peters Limited","1666003","15.66","Books","130193577","10/11/2017","Strategic Organisation Development","Global Budgets","R4309"
"Wolverhampton City Council","http://opendatacommunities.org/id/metropolitan-district-council/wolverhampton","706332","Peters Limited","1663503","420.70","Books","130195623","24/11/2017","Strategic Organisation Development","Global Budgets","R4309"
"Wolverhampton City Council","http://opendatacommunities.org/id/metropolitan-district-council/wolverhampton","706332","Peters Limited","1666004","12.12","Books","130193578","15/11/2017","Strategic Organisation Development","Global Budgets","R4309"
"Wolverhampton City Council","http://opendatacommunities.org/id/metropolitan-district-council/wolverhampton","706364","Phs Group PLC","65325943","-7.00","Contract Cleaning","130193105","08/11/2017","School Planning & Resources","Towers Outdoor Education Centre","R2700"
"Wolverhampton City Council","http://opendatacommunities.org/id/metropolitan-district-council/wolverhampton","706364","Phs Group PLC","65011457","10,629.77","Contract Cleaning","130196774","29/11/2017","Facilities Management","Civic Centre","R2700"
"Wolverhampton City Council","http://opendatacommunities.org/id/metropolitan-district-council/wolverhampton","706364","Phs Group PLC","65011524","3.12","Contract Cleaning","130195187","15/11/2017","Housing Revenue Account","Hostels / Outreach","R2700"
"Wolverhampton City Council","http://opendatacommunities.org/id/metropolitan-district-council/wolverhampton","706364","Phs Group PLC","65011520","94.51","Cleaning Supplies and Materials","130195184","15/11/2017","Visitor Economy","Civic Halls Non-Direct Event Management Account","R2705"
"Wolverhampton City Council","http://opendatacommunities.org/id/metropolitan-district-council/wolverhampton","706364","Phs Group PLC","65011523","62.40","Contract Cleaning","130195186","15/11/2017","Visitor Economy","The Little Civic","R2700"
"Wolverhampton City Council","http://opendatacommunities.org/id/metropolitan-district-council/wolverhampton","706364","Phs Group PLC","65011525","51.95","Contract Cleaning","130195188","15/11/2017","Markets","Bilston Market and Licensed Operations","R2700"
"Wolverhampton City Council","http://opendatacommunities.org/id/metropolitan-district-council/wolverhampton","706364","Phs Group PLC","65319559","35.00","Cleaning Supplies and Materials","130191772","01/11/2017","Adult Education","Service Wide","R2705"
"Wolverhampton City Council","http://opendatacommunities.org/id/metropolitan-district-council/wolverhampton","706364","Phs Group PLC","65011522","18.72","Contract Cleaning","130194067","03/11/2017","Bereavement Services","Crematorium","R2700"
"Wolverhampton City Council","http://opendatacommunities.org/id/metropolitan-district-council/wolverhampton","706364","Phs Group PLC","65368104","87.36","Contract Cleaning","130195723","22/11/2017","School Planning & Resources","Towers Outdoor Education Centre","R2700"
"Wolverhampton City Council","http://opendatacommunities.org/id/metropolitan-district-council/wolverhampton","706364","Phs Group PLC","63953428","45.23","Cleaning Supplies and Materials","130195559","17/11/2017","Markets","Wolverhampton Indoor and Open Market","R2705"
"Wolverhampton City Council","http://opendatacommunities.org/id/metropolitan-district-council/wolverhampton","706364","Phs Group PLC","65011526","41.73","Contract Cleaning","130195189","29/11/2017","Facilities Management","Civic Centre","R2700"
"Wolverhampton City Council","http://opendatacommunities.org/id/metropolitan-district-council/wolverhampton","706364","Phs Group PLC","64465078","66.77","Contract Cleaning","130196669","29/11/2017","Specialist Support","Intensive Family Support & Family Group Conferencing Team","R2700"
"Wolverhampton City Council","http://opendatacommunities.org/id/metropolitan-district-council/wolverhampton","706364","Phs Group PLC","64545562","139.62","Contract Cleaning","130196670","29/11/2017","Specialist Support","Intensive Family Support & Family Group Conferencing Team","R2700"
"Wolverhampton City Council","http://opendatacommunities.org/id/metropolitan-district-council/wolverhampton","706364","Phs Group PLC","64370741","175.11","Contract Cleaning","130195560","29/11/2017","Facilities Management","Civic Centre","R2700"
"Wolverhampton City Council","http://opendatacommunities.org/id/metropolitan-district-council/wolverhampton","706364","Phs Group PLC","65011521","12.48","Contract Cleaning","130195185","29/11/2017","Facilities Management","Civic Centre","R2700"
"Wolverhampton City Council","http://opendatacommunities.org/id/metropolitan-district-council/wolverhampton","706364","Phs Group PLC","65011528","32.53","Contract Cleaning","130195190","29/11/2017","Facilities Management","Civic Centre","R2700"
"Wolverhampton City Council","http://opendatacommunities.org/id/metropolitan-district-council/wolverhampton","706365","Phs Teacrate","514712","276.00","Cleaning Supplies and Materials","130195906","29/11/2017","Independent Living Service","Independent Living Service","R2705"
"Wolverhampton City Council","http://opendatacommunities.org/id/metropolitan-district-council/wolverhampton","706365","Phs Teacrate","514712","102.00","Cleaning Supplies and Materials","130195906","29/11/2017","Independent Living Service","Independent Living Service","R2705"
"Wolverhampton City Council","http://opendatacommunities.org/id/metropolitan-district-council/wolverhampton","706417","Plexus Law","My ref: EL160008/ER Your ref: 9DB/EV6388/00070029","575.00","Insurance - General","190398055","29/11/2017","Audit Services","Legal Liability","R4962"
"Wolverhampton City Council","http://opendatacommunities.org/id/metropolitan-district-council/wolverhampton","706417","Plexus Law","04351657","12,203.50","Insurance - General","130184904","03/11/2017","Audit Services","Legal Liability","R4962"
"Wolverhampton City Council","http://opendatacommunities.org/id/metropolitan-district-council/wolverhampton","706417","Plexus Law","04351657","77.76","Insurance - General","130184904","03/11/2017","Audit Services","Legal Liability","R4962"
"Wolverhampton City Council","http://opendatacommunities.org/id/metropolitan-district-council/wolverhampton","706417","Plexus Law","04353958","1,491.50","Insurance - General","130188526","01/11/2017","Audit Services","Legal Liability","R4962"
"Wolverhampton City Council","http://opendatacommunities.org/id/metropolitan-district-council/wolverhampton","706417","Plexus Law","04353958","-1,491.50","Insurance - General","130188526","01/11/2017","Audit Services","Legal Liability","R4962"
"Wolverhampton City Council","http://opendatacommunities.org/id/metropolitan-district-council/wolverhampton","706417","Plexus Law","04353958","1,391.50","Insurance - General","130188526","01/11/2017","Audit Services","Legal Liability","R4962"
"Wolverhampton City Council","http://opendatacommunities.org/id/metropolitan-district-council/wolverhampton","706417","Plexus Law","04353958","100.00","Insurance - General","130188526","01/11/2017","Audit Services","Legal Liability","R4962"
"Wolverhampton City Council","http://opendatacommunities.org/id/metropolitan-district-council/wolverhampton","706427","Zero Point Eight (Dudley) Ltd.","2242","1,600.00","Materials","130192939","15/11/2017","Strategic Organisation Development","Whitmore Reans Library","R4007"
"Wolverhampton City Council","http://opendatacommunities.org/id/metropolitan-district-council/wolverhampton","706436","Pony Express UK Limited","106417","210.00","Comms - Postage","130192446","15/11/2017","Looked After Children","Adoption and Residence Team & Allowances","R4503"
"Wolverhampton City Council","http://opendatacommunities.org/id/metropolitan-district-council/wolverhampton","706439","Portakabin Limited","900793443","272.97","Equipment - Hire","130193720","24/11/2017","Fleet Services","Passenger Transport - General","R4001"
"Wolverhampton City Council","http://opendatacommunities.org/id/metropolitan-district-council/wolverhampton","706439","Portakabin Limited","900793440","167.72","Room Hire","130193717","24/11/2017","Facilities Management","Hickman Avenue Depot","R2201"
"Wolverhampton City Council","http://opendatacommunities.org/id/metropolitan-district-council/wolverhampton","706439","Portakabin Limited","900793438","125.67","Room Hire","130193715","24/11/2017","Facilities Management","Hickman Avenue Depot","R2201"
"Wolverhampton City Council","http://opendatacommunities.org/id/metropolitan-district-council/wolverhampton","706439","Portakabin Limited","900793439","128.72","Room Hire","130193716","24/11/2017","Facilities Management","Hickman Avenue Depot","R2201"
"Wolverhampton City Council","http://opendatacommunities.org/id/metropolitan-district-council/wolverhampton","706439","Portakabin Limited","900793441","386.75","Room Hire","130193718","24/11/2017","Facilities Management","Hickman Avenue Depot","R2201"
"Wolverhampton City Council","http://opendatacommunities.org/id/metropolitan-district-council/wolverhampton","706439","Portakabin Limited","900793442","86.67","Room Hire","130193719","24/11/2017","Facilities Management","Culwell Street Depot","R2201"
"Wolverhampton City Council","http://opendatacommunities.org/id/metropolitan-district-council/wolverhampton","706439","Portakabin Limited","900793444","108.33","Room Hire","130193721","24/11/2017","Markets","Wholesale Market Facilities Management","R2201"
"Wolverhampton City Council","http://opendatacommunities.org/id/metropolitan-district-council/wolverhampton","706453","Post Office Counters Limited","vehicle tax underpayment","10.00","Road Fund Licence","190394795","22/11/2017","Fleet Services","Fleet Management","R3004"
"Wolverhampton City Council","http://opendatacommunities.org/id/metropolitan-district-council/wolverhampton","706453","Post Office Counters Limited","VEHICLE TAXATION NOVEMBER 2017","8,295.00","Road Fund Licence","190390722","08/11/2017","Fleet Services","Fleet Management","R3004"
"Wolverhampton City Council","http://opendatacommunities.org/id/metropolitan-district-council/wolverhampton","706456","Posturite Limited","INV0387989","103.96","Equipment - Purchase","130177104","22/11/2017","Adults Assessment & Care Management East","Adult Services � East","R4000"
"Wolverhampton City Council","http://opendatacommunities.org/id/metropolitan-district-council/wolverhampton","706456","Posturite Limited","INV0462876","159.95","Equipment - Purchase","130194360","08/11/2017","Governance Services","Scrutiny","R4000"
"Wolverhampton City Council","http://opendatacommunities.org/id/metropolitan-district-council/wolverhampton","706456","Posturite Limited","INV0454816","10.36","Equipment - Purchase","130194359","08/11/2017","Revenues & Benefits","Revenues","R4000"
"Wolverhampton City Council","http://opendatacommunities.org/id/metropolitan-district-council/wolverhampton","706470","Ppl Public Performance Licences","3472171","8,855.21","Services - General Licences","130193330","15/11/2017","Leisure Services","WV Active Business Support","R4402"
"Wolverhampton City Council","http://opendatacommunities.org/id/metropolitan-district-council/wolverhampton","706470","Ppl Public Performance Licences","3472171","-8,855.21","Services - General Licences","130193330","15/11/2017","Leisure Services","WV Active Business Support","R4402"
"Wolverhampton City Council","http://opendatacommunities.org/id/metropolitan-district-council/wolverhampton","706470","Ppl Public Performance Licences","3472171","8,855.21","Services - General Licences","130193330","15/11/2017","Leisure Services","WV Active Business Support","R4402"
"Wolverhampton City Council","http://opendatacommunities.org/id/metropolitan-district-council/wolverhampton","706476","Precise Media Monitoring Limited","410194","2,600.00","Marketing \ Non-staff advertising","130195191","15/11/2017","Visitor Economy","Visitor Economy - Development","R4317"
"Wolverhampton City Council","http://opendatacommunities.org/id/metropolitan-district-council/wolverhampton","706480","Premier Carpets & Flooring Limited","INV05848","346.35","Grant Payments","130194662","22/11/2017","Early Intervention","EIP Locality 6 � Dovecotes","R4700"
"Wolverhampton City Council","http://opendatacommunities.org/id/metropolitan-district-council/wolverhampton","706486","Premier Paper Group Limited","8950940","740.00","Stationery","130192308","10/11/2017","ICTS","Document Centre - General","R4308"
"Wolverhampton City Council","http://opendatacommunities.org/id/metropolitan-district-council/wolverhampton","706486","Premier Paper Group Limited","8951972","37.80","Stationery","130192309","10/11/2017","ICTS","Document Centre - General","R4308"
"Wolverhampton City Council","http://opendatacommunities.org/id/metropolitan-district-council/wolverhampton","706486","Premier Paper Group Limited","8978219","740.00","Stationery","130194209","29/11/2017","ICTS","Document Centre - General","R4308"
"Wolverhampton City Council","http://opendatacommunities.org/id/metropolitan-district-council/wolverhampton","706486","Premier Paper Group Limited","8933410","628.00","Stationery","130190860","01/11/2017","ICTS","Document Centre - General","R4308"
"Wolverhampton City Council","http://opendatacommunities.org/id/metropolitan-district-council/wolverhampton","706486","Premier Paper Group Limited","8933410","1,081.50","Stationery","130190860","01/11/2017","ICTS","Document Centre - General","R4308"
"Wolverhampton City Council","http://opendatacommunities.org/id/metropolitan-district-council/wolverhampton","706486","Premier Paper Group Limited","8948953","215.40","Stationery","130192122","08/11/2017","ICTS","Document Centre - General","R4308"
"Wolverhampton City Council","http://opendatacommunities.org/id/metropolitan-district-council/wolverhampton","706486","Premier Paper Group Limited","8948953","206.20","Stationery","130192122","08/11/2017","ICTS","Document Centre - General","R4308"
"Wolverhampton City Council","http://opendatacommunities.org/id/metropolitan-district-council/wolverhampton","706486","Premier Paper Group Limited","8948953","137.50","Stationery","130192122","08/11/2017","ICTS","Document Centre - General","R4308"
"Wolverhampton City Council","http://opendatacommunities.org/id/metropolitan-district-council/wolverhampton","706486","Premier Paper Group Limited","8948953","172.56","Stationery","130192122","08/11/2017","ICTS","Document Centre - General","R4308"
"Wolverhampton City Council","http://opendatacommunities.org/id/metropolitan-district-council/wolverhampton","706486","Premier Paper Group Limited","8948953","109.00","Stationery","130192122","08/11/2017","ICTS","Document Centre - General","R4308"
"Wolverhampton City Council","http://opendatacommunities.org/id/metropolitan-district-council/wolverhampton","706486","Premier Paper Group Limited","8973139","740.00","Stationery","130193864","24/11/2017","ICTS","Document Centre - General","R4308"
"Wolverhampton City Council","http://opendatacommunities.org/id/metropolitan-district-council/wolverhampton","706486","Premier Paper Group Limited","8966457","740.00","Stationery","130193488","22/11/2017","ICTS","Document Centre - General","R4308"
"Wolverhampton City Council","http://opendatacommunities.org/id/metropolitan-district-council/wolverhampton","706486","Premier Paper Group Limited","8962039","740.00","Stationery","130193107","17/11/2017","ICTS","Document Centre - General","R4308"
"Wolverhampton City Council","http://opendatacommunities.org/id/metropolitan-district-council/wolverhampton","706486","Premier Paper Group Limited","8955247","740.00","Stationery","130192597","15/11/2017","ICTS","Document Centre - General","R4308"
"Wolverhampton City Council","http://opendatacommunities.org/id/metropolitan-district-council/wolverhampton","706495","Preservation Equipment Limited","0000368558","93.57","Stationery","130196775","29/11/2017","Visitor Economy","Archives","R4308"
"Wolverhampton City Council","http://opendatacommunities.org/id/metropolitan-district-council/wolverhampton","706495","Preservation Equipment Limited","0000368558","10.00","Stationery","130196775","29/11/2017","Visitor Economy","Archives","R4308"
"Wolverhampton City Council","http://opendatacommunities.org/id/metropolitan-district-council/wolverhampton","706502","Prestwood Builders","12964","5,400.00","R&M - Departmental planned (external)","130194499","22/11/2017","Corporate Asset Management","Centralised Planned Maintenance","R2001"
"Wolverhampton City Council","http://opendatacommunities.org/id/metropolitan-district-council/wolverhampton","706516","Primary Teaching Services Limited","465338A","37.50","Services - Professional Fees","130196015","17/11/2017","Schools","St Luke�s Church of England Aided Primary School","R4400"
"Wolverhampton City Council","http://opendatacommunities.org/id/metropolitan-district-council/wolverhampton","706538","Priory Steel Group Limited","306272","452.00","Equipment - Purchase","190390216","08/11/2017","Fleet Services","Fleet Management","R4000"
"Wolverhampton City Council","http://opendatacommunities.org/id/metropolitan-district-council/wolverhampton","706538","Priory Steel Group Limited","306272","452.00","Equipment - Purchase","190390216","08/11/2017","Fleet Services","Fleet Management","R4000"
"Wolverhampton City Council","http://opendatacommunities.org/id/metropolitan-district-council/wolverhampton","706538","Priory Steel Group Limited","306371","194.00","Equipment - Purchase","190393184","15/11/2017","Fleet Services","Fleet Management","R4000"
"Wolverhampton City Council","http://opendatacommunities.org/id/metropolitan-district-council/wolverhampton","706539","Prism UK Medical Limited - Westholme Ltd","5226708","1,068.41","Equipment - Purchase","130193108","22/11/2017","Independent Living Service","Independent Living Service","R4000"
"Wolverhampton City Council","http://opendatacommunities.org/id/metropolitan-district-council/wolverhampton","706539","Prism UK Medical Limited - Westholme Ltd","5226708","20.00","Equipment - Purchase","130193108","22/11/2017","Independent Living Service","Independent Living Service","R4000"
"Wolverhampton City Council","http://opendatacommunities.org/id/metropolitan-district-council/wolverhampton","706551","Professional Fencing Limited/Ta Profence","11848","345.00","R&M - Departmental response (external)","130192940","01/11/2017","Environmental Maintenance","Parks - East Area Management","R2003"
"Wolverhampton City Council","http://opendatacommunities.org/id/metropolitan-district-council/wolverhampton","706551","Professional Fencing Limited/Ta Profence","11848","615.00","R&M - Departmental response (external)","130192940","01/11/2017","Environmental Maintenance","Parks - East Area Management","R2003"
"Wolverhampton City Council","http://opendatacommunities.org/id/metropolitan-district-council/wolverhampton","706567","Prontaprint Limited","77567","90.00","Marketing \ Non-staff advertising","130193489","01/11/2017","Visitor Economy","Civic & Wulfrun In-House Promotions","R4317"
"Wolverhampton City Council","http://opendatacommunities.org/id/metropolitan-district-council/wolverhampton","706567","Prontaprint Limited","77592","45.00","Marketing \ Non-staff advertising","130195908","17/11/2017","Visitor Economy","Arts Publicity","R4317"
"Wolverhampton City Council","http://opendatacommunities.org/id/metropolitan-district-council/wolverhampton","706567","Prontaprint Limited","77480","155.00","Marketing \ Non-staff advertising","130195727","22/11/2017","Visitor Economy","Arts Publicity","R4317"
"Wolverhampton City Council","http://opendatacommunities.org/id/metropolitan-district-council/wolverhampton","706567","Prontaprint Limited","77591","51.00","Marketing \ Non-staff advertising","130195731","22/11/2017","Visitor Economy","Civic & Wulfrun Outhouse & Other Comercial Events","R4317"
"Wolverhampton City Council","http://opendatacommunities.org/id/metropolitan-district-council/wolverhampton","706567","Prontaprint Limited","77591","-51.00","Marketing \ Non-staff advertising","130195731","22/11/2017","Visitor Economy","Civic & Wulfrun Outhouse & Other Comercial Events","R4317"
"Wolverhampton City Council","http://opendatacommunities.org/id/metropolitan-district-council/wolverhampton","706567","Prontaprint Limited","77591","90.00","Marketing \ Non-staff advertising","130195731","22/11/2017","Visitor Economy","Civic & Wulfrun Outhouse & Other Comercial Events","R4317"
"Wolverhampton City Council","http://opendatacommunities.org/id/metropolitan-district-council/wolverhampton","706567","Prontaprint Limited","77596","495.00","Marketing \ Non-staff advertising","130196101","22/11/2017","Headstart","Headstart - Young People Engagement","R4317"
"Wolverhampton City Council","http://opendatacommunities.org/id/metropolitan-district-council/wolverhampton","706567","Prontaprint Limited","77691","306.00","Marketing \ Non-staff advertising","130195733","22/11/2017","Visitor Economy","Civic & Wulfrun Outhouse & Other Comercial Events","R4317"
"Wolverhampton City Council","http://opendatacommunities.org/id/metropolitan-district-council/wolverhampton","706567","Prontaprint Limited","77691","-306.00","Marketing \ Non-staff advertising","130195733","22/11/2017","Visitor Economy","Civic & Wulfrun Outhouse & Other Comercial Events","R4317"
"Wolverhampton City Council","http://opendatacommunities.org/id/metropolitan-district-council/wolverhampton","706567","Prontaprint Limited","77691","333.00","Marketing \ Non-staff advertising","130195733","22/11/2017","Visitor Economy","Civic & Wulfrun Outhouse & Other Comercial Events","R4317"
"Wolverhampton City Council","http://opendatacommunities.org/id/metropolitan-district-council/wolverhampton","706567","Prontaprint Limited","77696","495.00","Marketing \ Non-staff advertising","130197279","29/11/2017","Headstart","Headstart - Young People Engagement","R4317"
"Wolverhampton City Council","http://opendatacommunities.org/id/metropolitan-district-council/wolverhampton","706567","Prontaprint Limited","77590","45.00","Marketing \ Non-staff advertising","130195730","17/11/2017","Visitor Economy","Civic & Wulfrun In-House Promotions","R4317"
"Wolverhampton City Council","http://opendatacommunities.org/id/metropolitan-district-council/wolverhampton","706567","Prontaprint Limited","77551","2,695.00","Marketing \ Non-staff advertising","130195728","17/11/2017","Headstart","Headstart Phase 3","R4317"
"Wolverhampton City Council","http://opendatacommunities.org/id/metropolitan-district-council/wolverhampton","706567","Prontaprint Limited","77551","595.00","Marketing \ Non-staff advertising","130195728","17/11/2017","Headstart","Headstart Phase 3","R4317"
"Wolverhampton City Council","http://opendatacommunities.org/id/metropolitan-district-council/wolverhampton","706567","Prontaprint Limited","77692","402.50","Marketing \ Non-staff advertising","130195734","24/11/2017","Visitor Economy","Civic & Wulfrun In-House Promotions","R4317"
"Wolverhampton City Council","http://opendatacommunities.org/id/metropolitan-district-council/wolverhampton","706567","Prontaprint Limited","77690","63.00","Marketing \ Non-staff advertising","130195732","29/11/2017","Visitor Economy","Arts Publicity","R4317"
"Wolverhampton City Council","http://opendatacommunities.org/id/metropolitan-district-council/wolverhampton","706576","Prospects Services","060470","14,877.00","TPP - Other contractors","130183268","01/11/2017","Skills","IMPACT","R5099"
"Wolverhampton City Council","http://opendatacommunities.org/id/metropolitan-district-council/wolverhampton","706576","Prospects Services","061394","5,152.42","Computing - Licences","130194068","08/11/2017","Skills","Connexions Contract","R4535"
"Wolverhampton City Council","http://opendatacommunities.org/id/metropolitan-district-council/wolverhampton","706576","Prospects Services","061533","1,653.00","TPP - Other contractors","130195359","15/11/2017","Skills","IMPACT","R5099"
"Wolverhampton City Council","http://opendatacommunities.org/id/metropolitan-district-council/wolverhampton","706578","Protec Fire Detection PLC","A05CX5","583.85","R&M - Departmental planned (internal)","130194210","29/11/2017","Maintenance Programme","Civic Centre Repairs & Maintenance","R2000"
"Wolverhampton City Council","http://opendatacommunities.org/id/metropolitan-district-council/wolverhampton","706578","Protec Fire Detection PLC","A054C6","454.27","R&M - Departmental planned (internal)","130193722","17/11/2017","Maintenance Programme","Civic Centre Repairs & Maintenance","R2000"
"Wolverhampton City Council","http://opendatacommunities.org/id/metropolitan-district-council/wolverhampton","706578","Protec Fire Detection PLC","043607","-566.85","R&M - Departmental planned (internal)","130194362","29/11/2017","Facilities Management","Civic Centre","R2000"
"Wolverhampton City Council","http://opendatacommunities.org/id/metropolitan-district-council/wolverhampton","706578","Protec Fire Detection PLC","A035T5","566.85","R&M - Departmental planned (internal)","130174070","15/11/2017","Facilities Management","Civic Centre","R2000"
"Wolverhampton City Council","http://opendatacommunities.org/id/metropolitan-district-council/wolverhampton","706578","Protec Fire Detection PLC","A03MH2","212.18","R&M - Departmental planned (internal)","130191927","17/11/2017","Maintenance Programme","Civic Centre Repairs & Maintenance","R2000"
"Wolverhampton City Council","http://opendatacommunities.org/id/metropolitan-district-council/wolverhampton","706593","Public Analyst Scientific Serv","IN - 17 - WP - 001316","100.00","Computing - Maint Agreements","130193580","01/11/2017","Public Protection","EHTS Operational Costs","R4534"
"Wolverhampton City Council","http://opendatacommunities.org/id/metropolitan-district-council/wolverhampton","706607","Purchase Power Pitney Bowes","BF040709","456.11","Comms - Postage","130193723","17/11/2017","Youth Offending","Youth Offending Team","R4503"
"Wolverhampton City Council","http://opendatacommunities.org/id/metropolitan-district-council/wolverhampton","706607","Purchase Power Pitney Bowes","BF044731","14.89","Comms - Postage","130193490","15/11/2017","Catering","Education Catering - General Overheads","R4503"
"Wolverhampton City Council","http://opendatacommunities.org/id/metropolitan-district-council/wolverhampton","706607","Purchase Power Pitney Bowes","BF044731","14.89","Comms - Postage","130193490","15/11/2017","Cleaning","Cleaning of Buildings - General","R4503"
"Wolverhampton City Council","http://opendatacommunities.org/id/metropolitan-district-council/wolverhampton","706620","QAS Limited T/A Experian Qas","HEX49000578405","113.66","Books","130177112","08/11/2017","Visitor Economy","Archives","R4309"
"Wolverhampton City Council","http://opendatacommunities.org/id/metropolitan-district-council/wolverhampton","706620","QAS Limited T/A Experian Qas","HEX49000578405","-113.66","Books","130177112","08/11/2017","Visitor Economy","Archives","R4309"
"Wolverhampton City Council","http://opendatacommunities.org/id/metropolitan-district-council/wolverhampton","706620","QAS Limited T/A Experian Qas","HEX49000578405","107.00","Books","130177112","08/11/2017","Visitor Economy","Archives","R4309"
"Wolverhampton City Council","http://opendatacommunities.org/id/metropolitan-district-council/wolverhampton","706620","QAS Limited T/A Experian Qas","HEX49000578405","6.66","Books","130177112","08/11/2017","Visitor Economy","Archives","R4309"
"Wolverhampton City Council","http://opendatacommunities.org/id/metropolitan-district-council/wolverhampton","706624","Q-Systems (UK) Limited","4945","73.00","Equipment - R & M","130196103","22/11/2017","Visitor Economy","Catering Overhead Account","R4003"
"Wolverhampton City Council","http://opendatacommunities.org/id/metropolitan-district-council/wolverhampton","706624","Q-Systems (UK) Limited","4804","15.00","Equipment - R & M","130196102","29/11/2017","Visitor Economy","Catering Overhead Account","R4003"
"Wolverhampton City Council","http://opendatacommunities.org/id/metropolitan-district-council/wolverhampton","706624","Q-Systems (UK) Limited","4981","35.00","Equipment - R & M","130196104","29/11/2017","Visitor Economy","Catering Overhead Account","R4003"
"Wolverhampton City Council","http://opendatacommunities.org/id/metropolitan-district-council/wolverhampton","706624","Q-Systems (UK) Limited","4988","1,140.00","Equipment - Purchase","130196105","29/11/2017","Visitor Economy","Catering Overhead Account","R4000"
"Wolverhampton City Council","http://opendatacommunities.org/id/metropolitan-district-council/wolverhampton","706624","Q-Systems (UK) Limited","5006","235.00","Equipment - R & M","130196947","29/11/2017","Visitor Economy","Catering Overhead Account","R4003"
"Wolverhampton City Council","http://opendatacommunities.org/id/metropolitan-district-council/wolverhampton","706631","Quality Office Supplies Limited","SINV10179227","2,174.00","Fixtures and Fittings - Purchases","130197201","29/11/2017","Schools","Lanesfield Primary School","R2500"
"Wolverhampton City Council","http://opendatacommunities.org/id/metropolitan-district-council/wolverhampton","706631","Quality Office Supplies Limited","SINV01079228","666.00","Fixtures and Fittings - Purchases","130197200","29/11/2017","Schools","Lanesfield Primary School","R2500"
"Wolverhampton City Council","http://opendatacommunities.org/id/metropolitan-district-council/wolverhampton","706634","Quantaqua Limited","Wolv 1416","2,939.02","Contract Cleaning","130194363","10/11/2017","Catering","Education Catering - General Overheads","R2700"
"Wolverhampton City Council","http://opendatacommunities.org/id/metropolitan-district-council/wolverhampton","706634","Quantaqua Limited","Wolv 1417","135.88","Contract Cleaning","130192941","01/11/2017","Maintenance Programme","Centralised R&M","R2700"
"Wolverhampton City Council","http://opendatacommunities.org/id/metropolitan-district-council/wolverhampton","706634","Quantaqua Limited","Wolv GT 700","744.80","Contract Cleaning","130194364","10/11/2017","Catering","Education Catering - General Overheads","R2700"
"Wolverhampton City Council","http://opendatacommunities.org/id/metropolitan-district-council/wolverhampton","706649","R A Port & Associates","1960 - 17","58.88","Services - Professional Fees","130195562","17/11/2017","Child Protection","Head of Service - CINCP","R4400"
"Wolverhampton City Council","http://opendatacommunities.org/id/metropolitan-district-council/wolverhampton","706649","R A Port & Associates","1953 - 17","110.00","Services - Professional Fees","130194970","15/11/2017","Child Protection","Head of Service - CINCP","R4400"
"Wolverhampton City Council","http://opendatacommunities.org/id/metropolitan-district-council/wolverhampton","706649","R A Port & Associates","1954 - 17","142.20","Services - Professional Fees","130194971","15/11/2017","Child Protection","Head of Service - CINCP","R4400"
"Wolverhampton City Council","http://opendatacommunities.org/id/metropolitan-district-council/wolverhampton","706649","R A Port & Associates","1957 - 17","64.85","Services - Professional Fees","130194972","15/11/2017","Child Protection","Head of Service - CINCP","R4400"
"Wolverhampton City Council","http://opendatacommunities.org/id/metropolitan-district-council/wolverhampton","706649","R A Port & Associates","1958 - 17","63.50","Services - Professional Fees","130194973","15/11/2017","Child Protection","Head of Service - CINCP","R4400"
"Wolverhampton City Council","http://opendatacommunities.org/id/metropolitan-district-council/wolverhampton","706649","R A Port & Associates","1947 - 17","67.67","Services - Professional Fees","130193724","03/11/2017","Child Protection","Head of Service - CINCP","R4400"
"Wolverhampton City Council","http://opendatacommunities.org/id/metropolitan-district-council/wolverhampton","706649","R A Port & Associates","1946 - 17","67.67","Services - Professional Fees","130193581","03/11/2017","Child Protection","Head of Service - CINCP","R4400"
"Wolverhampton City Council","http://opendatacommunities.org/id/metropolitan-district-council/wolverhampton","706666","R Prince","00035","960.00","TPP - Maintenance Contractor - General","190388381","01/11/2017","Transportation","Cycling Schemes - Bikeability","R5720"
"Wolverhampton City Council","http://opendatacommunities.org/id/metropolitan-district-council/wolverhampton","706668","R S Recovery Limited","00-103678","278.75","Services - Professional Fees","190390176","08/11/2017","Fleet Services","Fleet Management","R4400"
"Wolverhampton City Council","http://opendatacommunities.org/id/metropolitan-district-council/wolverhampton","706668","R S Recovery Limited","00-104606","206.25","Services - Professional Fees","190393151","15/11/2017","Fleet Services","Fleet Management","R4400"
"Wolverhampton City Council","http://opendatacommunities.org/id/metropolitan-district-council/wolverhampton","706668","R S Recovery Limited","00-104804","95.00","Services - Professional Fees","190393947","17/11/2017","Fleet Services","Fleet Management","R4400"
"Wolverhampton City Council","http://opendatacommunities.org/id/metropolitan-district-council/wolverhampton","706668","R S Recovery Limited","00-104804","147.50","Services - Professional Fees","190393947","17/11/2017","Fleet Services","Fleet Management","R4400"
"Wolverhampton City Council","http://opendatacommunities.org/id/metropolitan-district-council/wolverhampton","706668","R S Recovery Limited","00-105225","-95.00","Services - Professional Fees","190393948","17/11/2017","Fleet Services","Fleet Management","R4400"
"Wolverhampton City Council","http://opendatacommunities.org/id/metropolitan-district-council/wolverhampton","706675","R. S. Greenaway","6/STL","300.00","Services - Professional Fees","130196014","17/11/2017","Schools","St Luke�s Church of England Aided Primary School","R4400"
"Wolverhampton City Council","http://opendatacommunities.org/id/metropolitan-district-council/wolverhampton","706677","R.D.Jukes & Co Limited","11568","1,503.85","Construction and Conversion","130194365","10/11/2017","-","Electrical Works","C1100"
"Wolverhampton City Council","http://opendatacommunities.org/id/metropolitan-district-council/wolverhampton","706692","Rad Building Limited","15/0323/DFG.","4,503.41","Grants paid out","190393234","15/11/2017","-","Disabled Facilities Grants","C5000"
"Wolverhampton City Council","http://opendatacommunities.org/id/metropolitan-district-council/wolverhampton","706692","Rad Building Limited","17/0474/DFD","10,710.26","Grants paid out","190398295","29/11/2017","-","Disabled Facilities Grants","C5000"
"Wolverhampton City Council","http://opendatacommunities.org/id/metropolitan-district-council/wolverhampton","706692","Rad Building Limited","16/0041/DFGc","900.00","Grants paid out","190398298","29/11/2017","-","Disabled Facilities Grants","C5000"
"Wolverhampton City Council","http://opendatacommunities.org/id/metropolitan-district-council/wolverhampton","706692","Rad Building Limited","13/0058/DFG","12,674.42","Grants paid out","190395890","22/11/2017","-","Disabled Facilities Grants","C5000"
"Wolverhampton City Council","http://opendatacommunities.org/id/metropolitan-district-council/wolverhampton","706696","Radiotek Limited","13644","4,670.00","Equipment - Purchase","130192942","01/11/2017","Visitor Economy","Civic Halls - CHIP","R4000"
"Wolverhampton City Council","http://opendatacommunities.org/id/metropolitan-district-council/wolverhampton","706696","Radiotek Limited","13765","320.00","Equipment - Hire","130196778","29/11/2017","Visitor Economy","Christmas Festivities","R4001"
"Wolverhampton City Council","http://opendatacommunities.org/id/metropolitan-district-council/wolverhampton","706697","Radis Community Care","M9697","5,460.00","TPP - Home Care","130186070","08/11/2017","Older People Provider Services","Night Visiting Service","R5420"
"Wolverhampton City Council","http://opendatacommunities.org/id/metropolitan-district-council/wolverhampton","706697","Radis Community Care","2210201720171107","172.97","TPP - Home Care","190390871","08/11/2017","Older People Care Purchasing","OP Care Purchasing (Spot Placements)","R5420"
"Wolverhampton City Council","http://opendatacommunities.org/id/metropolitan-district-council/wolverhampton","706697","Radis Community Care","2210201720171107","49.42","TPP - Home Care","190390871","08/11/2017","Older People Care Purchasing","OP Care Purchasing (Spot Placements)","R5420"
"Wolverhampton City Council","http://opendatacommunities.org/id/metropolitan-district-council/wolverhampton","706697","Radis Community Care","2210201720171107","98.84","TPP - Home Care","190390871","08/11/2017","Older People Care Purchasing","OP Care Purchasing (Spot Placements)","R5420"
"Wolverhampton City Council","http://opendatacommunities.org/id/metropolitan-district-council/wolverhampton","706697","Radis Community Care","2210201720171107","21.18","TPP - Home Care","190390871","08/11/2017","Older People Care Purchasing","OP Care Purchasing (Spot Placements)","R5420"
"Wolverhampton City Council","http://opendatacommunities.org/id/metropolitan-district-council/wolverhampton","706697","Radis Community Care","2210201720171107","183.56","TPP - Home Care","190390871","08/11/2017","Older People Care Purchasing","OP Care Purchasing (Spot Placements)","R5420"
"Wolverhampton City Council","http://opendatacommunities.org/id/metropolitan-district-council/wolverhampton","706697","Radis Community Care","1510201720171107","77.66","TPP - Home Care","190390870","08/11/2017","Older People Care Purchasing","OP Care Purchasing (Spot Placements)","R5420"
"Wolverhampton City Council","http://opendatacommunities.org/id/metropolitan-district-council/wolverhampton","706697","Radis Community Care","1510201720171107","208.27","TPP - Home Care","190390870","08/11/2017","Older People Care Purchasing","OP Care Purchasing (Spot Placements)","R5420"
"Wolverhampton City Council","http://opendatacommunities.org/id/metropolitan-district-council/wolverhampton","706697","Radis Community Care","1510201720171107","148.26","TPP - Home Care","190390870","08/11/2017","Older People Care Purchasing","OP Care Purchasing (Spot Placements)","R5420"
"Wolverhampton City Council","http://opendatacommunities.org/id/metropolitan-district-council/wolverhampton","706697","Radis Community Care","1510201720171107","56.48","TPP - Home Care","190390870","08/11/2017","Older People Care Purchasing","OP Care Purchasing (Spot Placements)","R5420"
"Wolverhampton City Council","http://opendatacommunities.org/id/metropolitan-district-council/wolverhampton","706697","Radis Community Care","1510201720171107","14.12","TPP - Home Care","190390870","08/11/2017","Older People Care Purchasing","OP Care Purchasing (Spot Placements)","R5420"
"Wolverhampton City Council","http://opendatacommunities.org/id/metropolitan-district-council/wolverhampton","706697","Radis Community Care","1510201720171107","123.55","TPP - Home Care","190390870","08/11/2017","Older People Care Purchasing","OP Care Purchasing (Spot Placements)","R5420"
"Wolverhampton City Council","http://opendatacommunities.org/id/metropolitan-district-council/wolverhampton","706697","Radis Community Care","1510201720171107","105.90","TPP - Home Care","190390870","08/11/2017","Older People Care Purchasing","OP Care Purchasing (Spot Placements)","R5420"
"Wolverhampton City Council","http://opendatacommunities.org/id/metropolitan-district-council/wolverhampton","706697","Radis Community Care","1510201720171107","49.42","TPP - Home Care","190390870","08/11/2017","Older People Care Purchasing","OP Care Purchasing (Spot Placements)","R5420"
"Wolverhampton City Council","http://opendatacommunities.org/id/metropolitan-district-council/wolverhampton","706697","Radis Community Care","1510201720171107","162.38","TPP - Home Care","190390870","08/11/2017","Older People Care Purchasing","OP Care Purchasing (Spot Placements)","R5420"
"Wolverhampton City Council","http://opendatacommunities.org/id/metropolitan-district-council/wolverhampton","706697","Radis Community Care","1510201720171107","49.42","TPP - Home Care","190390870","08/11/2017","Older People Care Purchasing","OP Care Purchasing (Spot Placements)","R5420"
"Wolverhampton City Council","http://opendatacommunities.org/id/metropolitan-district-council/wolverhampton","706697","Radis Community Care","1510201720171107","31.77","TPP - Home Care","190390870","08/11/2017","Older People Care Purchasing","OP Care Purchasing (Spot Placements)","R5420"
"Wolverhampton City Council","http://opendatacommunities.org/id/metropolitan-district-council/wolverhampton","706697","Radis Community Care","1510201720171107","172.97","TPP - Home Care","190390870","08/11/2017","Older People Care Purchasing","OP Care Purchasing (Spot Placements)","R5420"
"Wolverhampton City Council","http://opendatacommunities.org/id/metropolitan-district-council/wolverhampton","706697","Radis Community Care","1510201720171107","67.07","TPP - Home Care","190390870","08/11/2017","Older People Care Purchasing","OP Care Purchasing (Spot Placements)","R5420"
"Wolverhampton City Council","http://opendatacommunities.org/id/metropolitan-district-council/wolverhampton","706697","Radis Community Care","1510201720171107","63.54","TPP - Home Care","190390870","08/11/2017","Older People Care Purchasing","OP Care Purchasing (Spot Placements)","R5420"
"Wolverhampton City Council","http://opendatacommunities.org/id/metropolitan-district-council/wolverhampton","706697","Radis Community Care","1510201720171107","42.36","TPP - Home Care","190390870","08/11/2017","Older People Care Purchasing","OP Care Purchasing (Spot Placements)","R5420"
"Wolverhampton City Council","http://opendatacommunities.org/id/metropolitan-district-council/wolverhampton","706697","Radis Community Care","1510201720171107","98.84","TPP - Home Care","190390870","08/11/2017","Older People Care Purchasing","OP Care Purchasing (Spot Placements)","R5420"
"Wolverhampton City Council","http://opendatacommunities.org/id/metropolitan-district-council/wolverhampton","706697","Radis Community Care","1510201720171107","190.62","TPP - Home Care","190390870","08/11/2017","Older People Care Purchasing","OP Care Purchasing (Spot Placements)","R5420"
"Wolverhampton City Council","http://opendatacommunities.org/id/metropolitan-district-council/wolverhampton","706697","Radis Community Care","1510201720171107","63.54","TPP - Home Care","190390870","08/11/2017","Older People Care Purchasing","OP Care Purchasing (Spot Placements)","R5420"
"Wolverhampton City Council","http://opendatacommunities.org/id/metropolitan-district-council/wolverhampton","706697","Radis Community Care","1510201720171107","201.21","TPP - Home Care","190390870","08/11/2017","Older People Care Purchasing","OP Care Purchasing (Spot Placements)","R5420"
"Wolverhampton City Council","http://opendatacommunities.org/id/metropolitan-district-council/wolverhampton","706697","Radis Community Care","1510201720171107","98.84","TPP - Home Care","190390870","08/11/2017","Older People Care Purchasing","OP Care Purchasing (Spot Placements)","R5420"
"Wolverhampton City Council","http://opendatacommunities.org/id/metropolitan-district-council/wolverhampton","706697","Radis Community Care","1510201720171107","120.02","TPP - Home Care","190390870","08/11/2017","Older People Care Purchasing","OP Care Purchasing (Spot Placements)","R5420"
"Wolverhampton City Council","http://opendatacommunities.org/id/metropolitan-district-council/wolverhampton","706697","Radis Community Care","1510201720171107","98.84","TPP - Home Care","190390870","08/11/2017","Older People Care Purchasing","OP Care Purchasing (Spot Placements)","R5420"
"Wolverhampton City Council","http://opendatacommunities.org/id/metropolitan-district-council/wolverhampton","706697","Radis Community Care","1510201720171107","148.26","TPP - Home Care","190390870","08/11/2017","Older People Care Purchasing","OP Care Purchasing (Spot Placements)","R5420"
"Wolverhampton City Council","http://opendatacommunities.org/id/metropolitan-district-council/wolverhampton","706697","Radis Community Care","1510201720171107","10.59","TPP - Home Care","190390870","08/11/2017","Older People Care Purchasing","OP Care Purchasing (Spot Placements)","R5420"
"Wolverhampton City Council","http://opendatacommunities.org/id/metropolitan-district-council/wolverhampton","706697","Radis Community Care","2210201720171107","102.37","TPP - Home Care","190390871","08/11/2017","Older People Care Purchasing","OP Care Purchasing (Spot Placements)","R5420"
"Wolverhampton City Council","http://opendatacommunities.org/id/metropolitan-district-council/wolverhampton","706697","Radis Community Care","2210201720171107","285.93","TPP - Home Care","190390871","08/11/2017","Older People Care Purchasing","OP Care Purchasing (Spot Placements)","R5420"
"Wolverhampton City Council","http://opendatacommunities.org/id/metropolitan-district-council/wolverhampton","706697","Radis Community Care","2210201720171107","264.75","TPP - Home Care","190390871","08/11/2017","Older People Care Purchasing","OP Care Purchasing (Spot Placements)","R5420"
"Wolverhampton City Council","http://opendatacommunities.org/id/metropolitan-district-council/wolverhampton","706697","Radis Community Care","2210201720171107","176.50","TPP - Home Care","190390871","08/11/2017","Older People Care Purchasing","OP Care Purchasing (Spot Placements)","R5420"
"Wolverhampton City Council","http://opendatacommunities.org/id/metropolitan-district-council/wolverhampton","706697","Radis Community Care","2210201720171107","105.90","TPP - Home Care","190390871","08/11/2017","Older People Care Purchasing","OP Care Purchasing (Spot Placements)","R5420"
"Wolverhampton City Council","http://opendatacommunities.org/id/metropolitan-district-council/wolverhampton","706697","Radis Community Care","2210201720171107","155.32","TPP - Home Care","190390871","08/11/2017","Older People Care Purchasing","OP Care Purchasing (Spot Placements)","R5420"
"Wolverhampton City Council","http://opendatacommunities.org/id/metropolitan-district-council/wolverhampton","706697","Radis Community Care","2210201720171107","155.32","TPP - Home Care","190390871","08/11/2017","Older People Care Purchasing","OP Care Purchasing (Spot Placements)","R5420"
"Wolverhampton City Council","http://opendatacommunities.org/id/metropolitan-district-council/wolverhampton","706697","Radis Community Care","2210201720171107","144.73","TPP - Home Care","190390871","08/11/2017","Older People Care Purchasing","OP Care Purchasing (Spot Placements)","R5420"
"Wolverhampton City Council","http://opendatacommunities.org/id/metropolitan-district-council/wolverhampton","706697","Radis Community Care","2210201720171107","144.73","TPP - Home Care","190390871","08/11/2017","Older People Care Purchasing","OP Care Purchasing (Spot Placements)","R5420"
"Wolverhampton City Council","http://opendatacommunities.org/id/metropolitan-district-council/wolverhampton","706697","Radis Community Care","2210201720171107","222.39","TPP - Home Care","190390871","08/11/2017","Older People Care Purchasing","OP Care Purchasing (Spot Placements)","R5420"
"Wolverhampton City Council","http://opendatacommunities.org/id/metropolitan-district-council/wolverhampton","706697","Radis Community Care","2210201720171107","84.72","TPP - Home Care","190390871","08/11/2017","Older People Care Purchasing","OP Care Purchasing (Spot Placements)","R5420"
"Wolverhampton City Council","http://opendatacommunities.org/id/metropolitan-district-council/wolverhampton","706697","Radis Community Care","2210201720171107","67.07","TPP - Home Care","190390871","08/11/2017","Older People Care Purchasing","OP Care Purchasing (Spot Placements)","R5420"
"Wolverhampton City Council","http://opendatacommunities.org/id/metropolitan-district-council/wolverhampton","706697","Radis Community Care","2210201720171107","21.18","TPP - Home Care","190390871","08/11/2017","Older People Care Purchasing","OP Care Purchasing (Spot Placements)","R5420"
"Wolverhampton City Council","http://opendatacommunities.org/id/metropolitan-district-council/wolverhampton","706697","Radis Community Care","2210201720171107","88.25","TPP - Home Care","190390871","08/11/2017","Older People Care Purchasing","OP Care Purchasing (Spot Placements)","R5420"
"Wolverhampton City Council","http://opendatacommunities.org/id/metropolitan-district-council/wolverhampton","706697","Radis Community Care","2210201720171107","218.86","TPP - Home Care","190390871","08/11/2017","Older People Care Purchasing","OP Care Purchasing (Spot Placements)","R5420"
"Wolverhampton City Council","http://opendatacommunities.org/id/metropolitan-district-council/wolverhampton","706697","Radis Community Care","2210201720171107","148.26","TPP - Home Care","190390871","08/11/2017","Older People Care Purchasing","OP Care Purchasing (Spot Placements)","R5420"
"Wolverhampton City Council","http://opendatacommunities.org/id/metropolitan-district-council/wolverhampton","706697","Radis Community Care","2210201720171107","49.42","TPP - Home Care","190390871","08/11/2017","Older People Care Purchasing","OP Care Purchasing (Spot Placements)","R5420"
"Wolverhampton City Council","http://opendatacommunities.org/id/metropolitan-district-council/wolverhampton","706697","Radis Community Care","2210201720171107","14.12","TPP - Home Care","190390871","08/11/2017","Older People Care Purchasing","OP Care Purchasing (Spot Placements)","R5420"
"Wolverhampton City Council","http://opendatacommunities.org/id/metropolitan-district-council/wolverhampton","706697","Radis Community Care","2210201720171107","120.02","TPP - Home Care","190390871","08/11/2017","Older People Care Purchasing","OP Care Purchasing (Spot Placements)","R5420"
"Wolverhampton City Council","http://opendatacommunities.org/id/metropolitan-district-council/wolverhampton","706697","Radis Community Care","2210201720171107","95.31","TPP - Home Care","190390871","08/11/2017","Older People Care Purchasing","OP Care Purchasing (Spot Placements)","R5420"
"Wolverhampton City Council","http://opendatacommunities.org/id/metropolitan-district-council/wolverhampton","706697","Radis Community Care","2210201720171107","232.98","TPP - Home Care","190390871","08/11/2017","Older People Care Purchasing","OP Care Purchasing (Spot Placements)","R5420"
"Wolverhampton City Council","http://opendatacommunities.org/id/metropolitan-district-council/wolverhampton","706697","Radis Community Care","1510201720171107","49.42","TPP - Home Care","190390870","08/11/2017","Older People Care Purchasing","OP Care Purchasing (Spot Placements)","R5420"
"Wolverhampton City Council","http://opendatacommunities.org/id/metropolitan-district-council/wolverhampton","706697","Radis Community Care","1510201720171107","38.83","TPP - Home Care","190390870","08/11/2017","Older People Care Purchasing","OP Care Purchasing (Spot Placements)","R5420"
"Wolverhampton City Council","http://opendatacommunities.org/id/metropolitan-district-council/wolverhampton","706697","Radis Community Care","1510201720171107","49.42","TPP - Home Care","190390870","08/11/2017","Older People Care Purchasing","OP Care Purchasing (Spot Placements)","R5420"
"Wolverhampton City Council","http://opendatacommunities.org/id/metropolitan-district-council/wolverhampton","706697","Radis Community Care","1510201720171107","77.66","TPP - Home Care","190390870","08/11/2017","Older People Care Purchasing","OP Care Purchasing (Spot Placements)","R5420"
"Wolverhampton City Council","http://opendatacommunities.org/id/metropolitan-district-council/wolverhampton","706697","Radis Community Care","2210201720171107","42.36","TPP - Home Care","190390871","08/11/2017","Older People Care Purchasing","OP Care Purchasing (Spot Placements)","R5420"
"Wolverhampton City Council","http://opendatacommunities.org/id/metropolitan-district-council/wolverhampton","706697","Radis Community Care","2210201720171107","476.55","TPP - Home Care","190390871","08/11/2017","Older People Care Purchasing","OP Care Purchasing (Spot Placements)","R5420"
"Wolverhampton City Council","http://opendatacommunities.org/id/metropolitan-district-council/wolverhampton","706697","Radis Community Care","1510201720171107","296.52","TPP - Home Care","190390870","08/11/2017","Older People Care Purchasing","OP Care Purchasing (Spot Placements)","R5420"
"Wolverhampton City Council","http://opendatacommunities.org/id/metropolitan-district-council/wolverhampton","706697","Radis Community Care","1510201720171107","56.48","TPP - Home Care","190390870","08/11/2017","Older People Care Purchasing","OP Care Purchasing (Spot Placements)","R5420"
"Wolverhampton City Council","http://opendatacommunities.org/id/metropolitan-district-council/wolverhampton","706697","Radis Community Care","1510201720171107","49.42","TPP - Home Care","190390870","08/11/2017","Older People Care Purchasing","OP Care Purchasing (Spot Placements)","R5420"
"Wolverhampton City Council","http://opendatacommunities.org/id/metropolitan-district-council/wolverhampton","706697","Radis Community Care","2210201720171107","201.21","TPP - Home Care","190390871","08/11/2017","Older People Care Purchasing","OP Care Purchasing (Spot Placements)","R5420"
"Wolverhampton City Council","http://opendatacommunities.org/id/metropolitan-district-council/wolverhampton","706697","Radis Community Care","2210201720171107","52.95","TPP - Home Care","190390871","08/11/2017","Older People Care Purchasing","OP Care Purchasing (Spot Placements)","R5420"
"Wolverhampton City Council","http://opendatacommunities.org/id/metropolitan-district-council/wolverhampton","706697","Radis Community Care","2210201720171107","49.42","TPP - Home Care","190390871","08/11/2017","Older People Care Purchasing","OP Care Purchasing (Spot Placements)","R5420"
"Wolverhampton City Council","http://opendatacommunities.org/id/metropolitan-district-council/wolverhampton","706697","Radis Community Care","2210201720171107","38.83","TPP - Home Care","190390871","08/11/2017","Older People Care Purchasing","OP Care Purchasing (Spot Placements)","R5420"
"Wolverhampton City Council","http://opendatacommunities.org/id/metropolitan-district-council/wolverhampton","706697","Radis Community Care","2210201720171107","49.42","TPP - Home Care","190390871","08/11/2017","Older People Care Purchasing","OP Care Purchasing (Spot Placements)","R5420"
"Wolverhampton City Council","http://opendatacommunities.org/id/metropolitan-district-council/wolverhampton","706697","Radis Community Care","2210201720171107","102.37","TPP - Home Care","190390871","08/11/2017","Older People Care Purchasing","OP Care Purchasing (Spot Placements)","R5420"
"Wolverhampton City Council","http://opendatacommunities.org/id/metropolitan-district-council/wolverhampton","706697","Radis Community Care","1510201720171107","222.39","TPP - Home Care","190390870","08/11/2017","Older People Care Purchasing","OP Care Purchasing (Spot Placements)","R5420"
"Wolverhampton City Council","http://opendatacommunities.org/id/metropolitan-district-council/wolverhampton","706697","Radis Community Care","1510201720171107","222.39","TPP - Home Care","190390870","08/11/2017","Older People Care Purchasing","OP Care Purchasing (Spot Placements)","R5420"
"Wolverhampton City Council","http://opendatacommunities.org/id/metropolitan-district-council/wolverhampton","706697","Radis Community Care","2210201720171107","70.60","TPP - Home Care","190390871","08/11/2017","Older People Care Purchasing","OP Care Purchasing (Spot Placements)","R5420"
"Wolverhampton City Council","http://opendatacommunities.org/id/metropolitan-district-council/wolverhampton","706697","Radis Community Care","2210201720171107","74.13","TPP - Home Care","190390871","08/11/2017","Older People Care Purchasing","OP Care Purchasing (Spot Placements)","R5420"
"Wolverhampton City Council","http://opendatacommunities.org/id/metropolitan-district-council/wolverhampton","706697","Radis Community Care","2210201720171107","194.15","TPP - Home Care","190390871","08/11/2017","Older People Care Purchasing","OP Care Purchasing (Spot Placements)","R5420"
"Wolverhampton City Council","http://opendatacommunities.org/id/metropolitan-district-council/wolverhampton","706697","Radis Community Care","2210201720171107","194.15","TPP - Home Care","190390871","08/11/2017","Older People Care Purchasing","OP Care Purchasing (Spot Placements)","R5420"
"Wolverhampton City Council","http://opendatacommunities.org/id/metropolitan-district-council/wolverhampton","706697","Radis Community Care","2210201720171107","123.55","TPP - Home Care","190390871","08/11/2017","Older People Care Purchasing","OP Care Purchasing (Spot Placements)","R5420"
"Wolverhampton City Council","http://opendatacommunities.org/id/metropolitan-district-council/wolverhampton","706697","Radis Community Care","2210201720171107","42.36","TPP - Home Care","190390871","08/11/2017","Older People Care Purchasing","OP Care Purchasing (Spot Placements)","R5420"
"Wolverhampton City Council","http://opendatacommunities.org/id/metropolitan-district-council/wolverhampton","706697","Radis Community Care","2210201720171107","42.36","TPP - Home Care","190390871","08/11/2017","Older People Care Purchasing","OP Care Purchasing (Spot Placements)","R5420"
"Wolverhampton City Council","http://opendatacommunities.org/id/metropolitan-district-council/wolverhampton","706697","Radis Community Care","2210201720171107","222.39","TPP - Home Care","190390871","08/11/2017","Older People Care Purchasing","OP Care Purchasing (Spot Placements)","R5420"
"Wolverhampton City Council","http://opendatacommunities.org/id/metropolitan-district-council/wolverhampton","706697","Radis Community Care","1510201720171107","215.33","TPP - Home Care","190390870","08/11/2017","Older People Care Purchasing","OP Care Purchasing (Spot Placements)","R5420"
"Wolverhampton City Council","http://opendatacommunities.org/id/metropolitan-district-council/wolverhampton","706697","Radis Community Care","1510201720171107","222.39","TPP - Home Care","190390870","08/11/2017","Older People Care Purchasing","OP Care Purchasing (Spot Placements)","R5420"
"Wolverhampton City Council","http://opendatacommunities.org/id/metropolitan-district-council/wolverhampton","706697","Radis Community Care","1510201720171107","151.79","TPP - Home Care","190390870","08/11/2017","Older People Care Purchasing","OP Care Purchasing (Spot Placements)","R5420"
"Wolverhampton City Council","http://opendatacommunities.org/id/metropolitan-district-council/wolverhampton","706697","Radis Community Care","1510201720171107","91.78","TPP - Home Care","190390870","08/11/2017","Older People Care Purchasing","OP Care Purchasing (Spot Placements)","R5420"
"Wolverhampton City Council","http://opendatacommunities.org/id/metropolitan-district-council/wolverhampton","706697","Radis Community Care","1510201720171107","42.36","TPP - Home Care","190390870","08/11/2017","Older People Care Purchasing","OP Care Purchasing (Spot Placements)","R5420"
"Wolverhampton City Council","http://opendatacommunities.org/id/metropolitan-district-council/wolverhampton","706697","Radis Community Care","1510201720171107","144.73","TPP - Home Care","190390870","08/11/2017","Older People Care Purchasing","OP Care Purchasing (Spot Placements)","R5420"
"Wolverhampton City Council","http://opendatacommunities.org/id/metropolitan-district-council/wolverhampton","706697","Radis Community Care","1510201720171107","162.38","TPP - Home Care","190390870","08/11/2017","Older People Care Purchasing","OP Care Purchasing (Spot Placements)","R5420"
"Wolverhampton City Council","http://opendatacommunities.org/id/metropolitan-district-council/wolverhampton","706697","Radis Community Care","1510201720171107","84.72","TPP - Home Care","190390870","08/11/2017","Older People Care Purchasing","OP Care Purchasing (Spot Placements)","R5420"
"Wolverhampton City Council","http://opendatacommunities.org/id/metropolitan-district-council/wolverhampton","706697","Radis Community Care","1510201720171107","98.84","TPP - Home Care","190390870","08/11/2017","Older People Care Purchasing","OP Care Purchasing (Spot Placements)","R5420"
"Wolverhampton City Council","http://opendatacommunities.org/id/metropolitan-district-council/wolverhampton","706697","Radis Community Care","1510201720171107","98.84","TPP - Home Care","190390870","08/11/2017","Older People Care Purchasing","OP Care Purchasing (Spot Placements)","R5420"
"Wolverhampton City Council","http://opendatacommunities.org/id/metropolitan-district-council/wolverhampton","706697","Radis Community Care","1510201720171107","151.79","TPP - Home Care","190390870","08/11/2017","Older People Care Purchasing","OP Care Purchasing (Spot Placements)","R5420"
"Wolverhampton City Council","http://opendatacommunities.org/id/metropolitan-district-council/wolverhampton","706697","Radis Community Care","2210201720171107","98.84","TPP - Home Care","190390871","08/11/2017","Older People Care Purchasing","OP Care Purchasing (Spot Placements)","R5420"
"Wolverhampton City Council","http://opendatacommunities.org/id/metropolitan-district-council/wolverhampton","706697","Radis Community Care","2210201720171107","254.16","TPP - Home Care","190390871","08/11/2017","Older People Care Purchasing","OP Care Purchasing (Spot Placements)","R5420"
"Wolverhampton City Council","http://opendatacommunities.org/id/metropolitan-district-council/wolverhampton","706697","Radis Community Care","2210201720171107","225.92","TPP - Home Care","190390871","08/11/2017","Older People Care Purchasing","OP Care Purchasing (Spot Placements)","R5420"
"Wolverhampton City Council","http://opendatacommunities.org/id/metropolitan-district-council/wolverhampton","706697","Radis Community Care","2210201720171107","98.84","TPP - Home Care","190390871","08/11/2017","Older People Care Purchasing","OP Care Purchasing (Spot Placements)","R5420"
"Wolverhampton City Council","http://opendatacommunities.org/id/metropolitan-district-council/wolverhampton","706697","Radis Community Care","2210201720171107","98.84","TPP - Home Care","190390871","08/11/2017","Older People Care Purchasing","OP Care Purchasing (Spot Placements)","R5420"
"Wolverhampton City Council","http://opendatacommunities.org/id/metropolitan-district-council/wolverhampton","706697","Radis Community Care","2210201720171107","52.95","TPP - Home Care","190390871","08/11/2017","Older People Care Purchasing","OP Care Purchasing (Spot Placements)","R5420"
"Wolverhampton City Council","http://opendatacommunities.org/id/metropolitan-district-council/wolverhampton","706697","Radis Community Care","1510201720171107","35.30","TPP - Home Care","190390870","08/11/2017","Older People Care Purchasing","OP Care Purchasing (Spot Placements)","R5420"
"Wolverhampton City Council","http://opendatacommunities.org/id/metropolitan-district-council/wolverhampton","706697","Radis Community Care","1510201720171107","49.42","TPP - Home Care","190390870","08/11/2017","Older People Care Purchasing","OP Care Purchasing (Spot Placements)","R5420"
"Wolverhampton City Council","http://opendatacommunities.org/id/metropolitan-district-council/wolverhampton","706697","Radis Community Care","1510201720171107","49.42","TPP - Home Care","190390870","08/11/2017","Older People Care Purchasing","OP Care Purchasing (Spot Placements)","R5420"
"Wolverhampton City Council","http://opendatacommunities.org/id/metropolitan-district-council/wolverhampton","706697","Radis Community Care","1510201720171107","98.84","TPP - Home Care","190390870","08/11/2017","Older People Care Purchasing","OP Care Purchasing (Spot Placements)","R5420"
"Wolverhampton City Council","http://opendatacommunities.org/id/metropolitan-district-council/wolverhampton","706697","Radis Community Care","1510201720171107","24.71","TPP - Home Care","190390870","08/11/2017","Older People Care Purchasing","OP Care Purchasing (Spot Placements)","R5420"
"Wolverhampton City Council","http://opendatacommunities.org/id/metropolitan-district-council/wolverhampton","706697","Radis Community Care","1510201720171107","176.50","TPP - Home Care","190390870","08/11/2017","Older People Care Purchasing","OP Care Purchasing (Spot Placements)","R5420"
"Wolverhampton City Council","http://opendatacommunities.org/id/metropolitan-district-council/wolverhampton","706697","Radis Community Care","1510201720171107","289.46","TPP - Home Care","190390870","08/11/2017","Older People Care Purchasing","OP Care Purchasing (Spot Placements)","R5420"
"Wolverhampton City Council","http://opendatacommunities.org/id/metropolitan-district-council/wolverhampton","706697","Radis Community Care","2210201720171107","105.90","TPP - Home Care","190390871","08/11/2017","Older People Care Purchasing","OP Care Purchasing (Spot Placements)","R5420"
"Wolverhampton City Council","http://opendatacommunities.org/id/metropolitan-district-council/wolverhampton","706697","Radis Community Care","2210201720171107","49.42","TPP - Home Care","190390871","08/11/2017","Older People Care Purchasing","OP Care Purchasing (Spot Placements)","R5420"
"Wolverhampton City Council","http://opendatacommunities.org/id/metropolitan-district-council/wolverhampton","706697","Radis Community Care","2210201720171107","123.55","TPP - Home Care","190390871","08/11/2017","Older People Care Purchasing","OP Care Purchasing (Spot Placements)","R5420"
"Wolverhampton City Council","http://opendatacommunities.org/id/metropolitan-district-council/wolverhampton","706697","Radis Community Care","2210201720171107","49.42","TPP - Home Care","190390871","08/11/2017","Older People Care Purchasing","OP Care Purchasing (Spot Placements)","R5420"
"Wolverhampton City Council","http://opendatacommunities.org/id/metropolitan-district-council/wolverhampton","706697","Radis Community Care","2210201720171107","49.42","TPP - Home Care","190390871","08/11/2017","Older People Care Purchasing","OP Care Purchasing (Spot Placements)","R5420"
"Wolverhampton City Council","http://opendatacommunities.org/id/metropolitan-district-council/wolverhampton","706697","Radis Community Care","2210201720171107","49.42","TPP - Home Care","190390871","08/11/2017","Older People Care Purchasing","OP Care Purchasing (Spot Placements)","R5420"
"Wolverhampton City Council","http://opendatacommunities.org/id/metropolitan-district-council/wolverhampton","706697","Radis Community Care","1510201720171107","74.13","TPP - Home Care","190390870","08/11/2017","Older People Care Purchasing","OP Care Purchasing (Spot Placements)","R5420"
"Wolverhampton City Council","http://opendatacommunities.org/id/metropolitan-district-council/wolverhampton","706697","Radis Community Care","1510201720171107","102.37","TPP - Home Care","190390870","08/11/2017","Older People Care Purchasing","OP Care Purchasing (Spot Placements)","R5420"
"Wolverhampton City Council","http://opendatacommunities.org/id/metropolitan-district-council/wolverhampton","706697","Radis Community Care","1510201720171107","95.31","TPP - Home Care","190390870","08/11/2017","Older People Care Purchasing","OP Care Purchasing (Spot Placements)","R5420"
"Wolverhampton City Council","http://opendatacommunities.org/id/metropolitan-district-council/wolverhampton","706697","Radis Community Care","1510201720171107","70.60","TPP - Home Care","190390870","08/11/2017","Older People Care Purchasing","OP Care Purchasing (Spot Placements)","R5420"
"Wolverhampton City Council","http://opendatacommunities.org/id/metropolitan-district-council/wolverhampton","706697","Radis Community Care","1510201720171107","35.30","TPP - Home Care","190390870","08/11/2017","Older People Care Purchasing","OP Care Purchasing (Spot Placements)","R5420"
"Wolverhampton City Council","http://opendatacommunities.org/id/metropolitan-district-council/wolverhampton","706697","Radis Community Care","1510201720171107","49.42","TPP - Home Care","190390870","08/11/2017","Older People Care Purchasing","OP Care Purchasing (Spot Placements)","R5420"
"Wolverhampton City Council","http://opendatacommunities.org/id/metropolitan-district-council/wolverhampton","706697","Radis Community Care","1510201720171107","102.37","TPP - Home Care","190390870","08/11/2017","Older People Care Purchasing","OP Care Purchasing (Spot Placements)","R5420"
"Wolverhampton City Council","http://opendatacommunities.org/id/metropolitan-district-council/wolverhampton","706697","Radis Community Care","1510201720171107","232.98","TPP - Home Care","190390870","08/11/2017","Older People Care Purchasing","OP Care Purchasing (Spot Placements)","R5420"
"Wolverhampton City Council","http://opendatacommunities.org/id/metropolitan-district-council/wolverhampton","706697","Radis Community Care","1510201720171107","24.71","TPP - Home Care","190390870","08/11/2017","Older People Care Purchasing","OP Care Purchasing (Spot Placements)","R5420"
"Wolverhampton City Council","http://opendatacommunities.org/id/metropolitan-district-council/wolverhampton","706697","Radis Community Care","1510201720171107","155.32","TPP - Home Care","190390870","08/11/2017","Older People Care Purchasing","OP Care Purchasing (Spot Placements)","R5420"
"Wolverhampton City Council","http://opendatacommunities.org/id/metropolitan-district-council/wolverhampton","706697","Radis Community Care","1510201720171107","148.26","TPP - Home Care","190390870","08/11/2017","Older People Care Purchasing","OP Care Purchasing (Spot Placements)","R5420"
"Wolverhampton City Council","http://opendatacommunities.org/id/metropolitan-district-council/wolverhampton","706697","Radis Community Care","1510201720171107","148.26","TPP - Home Care","190390870","08/11/2017","Older People Care Purchasing","OP Care Purchasing (Spot Placements)","R5420"
"Wolverhampton City Council","http://opendatacommunities.org/id/metropolitan-district-council/wolverhampton","706697","Radis Community Care","1510201720171107","222.39","TPP - Home Care","190390870","08/11/2017","Older People Care Purchasing","OP Care Purchasing (Spot Placements)","R5420"
"Wolverhampton City Council","http://opendatacommunities.org/id/metropolitan-district-council/wolverhampton","706697","Radis Community Care","1510201720171107","77.66","TPP - Home Care","190390870","08/11/2017","Older People Care Purchasing","OP Care Purchasing (Spot Placements)","R5420"
"Wolverhampton City Council","http://opendatacommunities.org/id/metropolitan-district-council/wolverhampton","706697","Radis Community Care","2210201720171107","74.13","TPP - Home Care","190390871","08/11/2017","Older People Care Purchasing","OP Care Purchasing (Spot Placements)","R5420"
"Wolverhampton City Council","http://opendatacommunities.org/id/metropolitan-district-council/wolverhampton","706697","Radis Community Care","2210201720171107","14.12","TPP - Home Care","190390871","08/11/2017","Older People Care Purchasing","OP Care Purchasing (Spot Placements)","R5420"
